{"text_format":"1","workbook":"xlsx","n_sheets":9,"sheets":["test","dop_uslug","price_dop","price_kvart","price_home","formula","card","инф","dop_uslug (2)"],"not_rendered":{"charts":0,"images":0,"macros":1,"external_links":0,"defined_names":9,"comments":0,"pivot_tables":0},"unopened":[],"bounds":{"document_bytes":16777216,"sheet_cells":100000,"rows_first":2000,"rows_last":500,"rows_between":2000,"halvings":0,"cell_chars":16384,"cell_head_chars":4096},"cells_cut":0,"cells_raw":0,"read":"whole","date_system":"1900"}

{"sheet":"test","index":0,"n_rows":10,"n_cols":14,"rows_kept":10,"cut":false,"hidden":false,"merged":[]}
["№","дата          заказа","тип           помещения","услуги","S","цена,        м2","сумма","№          карты","Фамилия","Имя","Отчество","адрес","контакт","примечание"]
[{"$f":"ROW()-1","v":1},"2016-01-01","квартира","уборка",81,{"$f":"IFERROR(IF(COUNTA(C2:E2),INDEX(IF(C2=\"дом\",price_home!$B$3:$E$4,price_kvart!$B$3:$E$4),MATCH(D2,price_kvart!$A$3:$A$4,0),MATCH(E2,price_kvart!$B$2:$E$2)),\"\"),\"\")","v":33},{"$f":"IFERROR((IF(dop_uslug!$K2=\"да\",price_dop!$B$4,price_dop!$C$4))+(IF(dop_uslug!$L2=\"да\",price_dop!$B$5,price_dop!$C$5))+(test!$E2*test!$F2)+(IF(dop_uslug!$H2=\"да\",price_dop!$B$3,price_dop!$C$3)*dop_uslug!$I2),\"\")","v":4973},5,{"$f":"IFERROR(INDEX(card!$B$2:$E$102,MATCH($H2,\ncard!$B$2:$B$102),2),\"\")","v":"сидоров"},{"$f":"IFERROR(INDEX(card!$B$2:$E$102,MATCH($H2,\ncard!$B$2:$B$102),3),\"\")","v":"сидр"},{"$f":"IFERROR(INDEX(card!$B$2:$E$102,MATCH($H2,\ncard!$B$2:$B$102),4),\"\")","v":"сидорович"},"гоголя 16/78","8-000-000-00-00"]
[2,"2016-01-02","дом","послестрой",60,{"$f":"IFERROR(IF(COUNTA(C3:E3),INDEX(IF(C3=\"дом\",price_home!$B$3:$E$4,price_kvart!$B$3:$E$4),MATCH(D3,price_kvart!$A$3:$A$4,0),MATCH(E3,price_kvart!$B$2:$E$2)),\"\"),\"\")","v":70},{"$f":"IFERROR((IF(dop_uslug!$K3=\"да\",price_dop!$B$4,price_dop!$C$4))+(IF(dop_uslug!$L3=\"да\",price_dop!$B$5,price_dop!$C$5))+(test!$E3*test!$F3)+(IF(dop_uslug!$H3=\"да\",price_dop!$B$3,price_dop!$C$3)*dop_uslug!$I3),\"\")","v":5700},2,{"$f":"IFERROR(INDEX(card!$B$2:$E$102,MATCH($H3,\ncard!$B$2:$B$102),2),\"\")","v":"булко"},{"$f":"IFERROR(INDEX(card!$B$2:$E$102,MATCH($H3,\ncard!$B$2:$B$102),3),\"\")","v":"александр"},{"$f":"IFERROR(INDEX(card!$B$2:$E$102,MATCH($H3,\ncard!$B$2:$B$102),4),\"\")","v":"владимирович"},"кр.проспект 73/4/6","8-000-000-00-00"]
[3,"2016-01-02","квартира","послестрой",60,{"$f":"IFERROR(IF(COUNTA(C4:E4),INDEX(IF(C4=\"дом\",price_home!$B$3:$E$4,price_kvart!$B$3:$E$4),MATCH(D4,price_kvart!$A$3:$A$4,0),MATCH(E4,price_kvart!$B$2:$E$2)),\"\"),\"\")","v":60},{"$f":"IFERROR((IF(dop_uslug!$K4=\"да\",price_dop!$B$4,price_dop!$C$4))+(IF(dop_uslug!$L4=\"да\",price_dop!$B$5,price_dop!$C$5))+(test!$E4*test!$F4)+(IF(dop_uslug!$H4=\"да\",price_dop!$B$3,price_dop!$C$3)*dop_uslug!$I4),\"\")","v":3600},4,{"$f":"IFERROR(INDEX(card!$B$2:$E$102,MATCH($H4,\ncard!$B$2:$B$102),2),\"\")","v":"петров"},{"$f":"IFERROR(INDEX(card!$B$2:$E$102,MATCH($H4,\ncard!$B$2:$B$102),3),\"\")","v":"петр"},{"$f":"IFERROR(INDEX(card!$B$2:$E$102,MATCH($H4,\ncard!$B$2:$B$102),4),\"\")","v":"петрович"},"гагарина 84/455","8-000-000-00-00"]
[4,"2016-01-02","дом","уборка",95,{"$f":"IFERROR(IF(COUNTA(C5:E5),INDEX(IF(C5=\"дом\",price_home!$B$3:$E$4,price_kvart!$B$3:$E$4),MATCH(D5,price_kvart!$A$3:$A$4,0),MATCH(E5,price_kvart!$B$2:$E$2)),\"\"),\"\")","v":48},{"$f":"IFERROR((IF(dop_uslug!$K5=\"да\",price_dop!$B$4,price_dop!$C$4))+(IF(dop_uslug!$L5=\"да\",price_dop!$B$5,price_dop!$C$5))+(test!$E5*test!$F5)+(IF(dop_uslug!$H5=\"да\",price_dop!$B$3,price_dop!$C$3)*dop_uslug!$I5),\"\")","v":4560},2,{"$f":"IFERROR(INDEX(card!$B$2:$E$102,MATCH($H5,\ncard!$B$2:$B$102),2),\"\")","v":"булко"},{"$f":"IFERROR(INDEX(card!$B$2:$E$102,MATCH($H5,\ncard!$B$2:$B$102),3),\"\")","v":"александр"},{"$f":"IFERROR(INDEX(card!$B$2:$E$102,MATCH($H5,\ncard!$B$2:$B$102),4),\"\")","v":"владимирович"},"кр.проспект 73/4/6","8-000-000-00-00"]
[5,"2016-01-06","квартира","уборка",60,{"$f":"IFERROR(IF(COUNTA(C6:E6),INDEX(IF(C6=\"дом\",price_home!$B$3:$E$4,price_kvart!$B$3:$E$4),MATCH(D6,price_kvart!$A$3:$A$4,0),MATCH(E6,price_kvart!$B$2:$E$2)),\"\"),\"\")","v":35},{"$f":"IFERROR((IF(dop_uslug!$K6=\"да\",price_dop!$B$4,price_dop!$C$4))+(IF(dop_uslug!$L6=\"да\",price_dop!$B$5,price_dop!$C$5))+(test!$E6*test!$F6)+(IF(dop_uslug!$H6=\"да\",price_dop!$B$3,price_dop!$C$3)*dop_uslug!$I6),\"\")","v":2100},5,{"$f":"IFERROR(INDEX(card!$B$2:$E$102,MATCH($H6,\ncard!$B$2:$B$102),2),\"\")","v":"сидоров"},{"$f":"IFERROR(INDEX(card!$B$2:$E$102,MATCH($H6,\ncard!$B$2:$B$102),3),\"\")","v":"сидр"},{"$f":"IFERROR(INDEX(card!$B$2:$E$102,MATCH($H6,\ncard!$B$2:$B$102),4),\"\")","v":"сидорович"},"гоголя 16/78","8-000-000-00-00"]
[6,"2016-01-07","дом","послестрой",80,{"$f":"IFERROR(IF(COUNTA(C7:E7),INDEX(IF(C7=\"дом\",price_home!$B$3:$E$4,price_kvart!$B$3:$E$4),MATCH(D7,price_kvart!$A$3:$A$4,0),MATCH(E7,price_kvart!$B$2:$E$2)),\"\"),\"\")","v":70},{"$f":"IFERROR((IF(dop_uslug!$K7=\"да\",price_dop!$B$4,price_dop!$C$4))+(IF(dop_uslug!$L7=\"да\",price_dop!$B$5,price_dop!$C$5))+(test!$E7*test!$F7)+(IF(dop_uslug!$H7=\"да\",price_dop!$B$3,price_dop!$C$3)*dop_uslug!$I7),\"\")","v":6800},4,{"$f":"IFERROR(INDEX(card!$B$2:$E$102,MATCH($H7,\ncard!$B$2:$B$102),2),\"\")","v":"петров"},{"$f":"IFERROR(INDEX(card!$B$2:$E$102,MATCH($H7,\ncard!$B$2:$B$102),3),\"\")","v":"петр"},{"$f":"IFERROR(INDEX(card!$B$2:$E$102,MATCH($H7,\ncard!$B$2:$B$102),4),\"\")","v":"петрович"},"гагарина 84/455","8-000-000-00-00"]
[7,"2016-01-08","квартира","уборка",15,{"$f":"IFERROR(IF(COUNTA(C8:E8),INDEX(IF(C8=\"дом\",price_home!$B$3:$E$4,price_kvart!$B$3:$E$4),MATCH(D8,price_kvart!$A$3:$A$4,0),MATCH(E8,price_kvart!$B$2:$E$2)),\"\"),\"\")","v":35},{"$f":"IFERROR((IF(dop_uslug!$K8=\"да\",price_dop!$B$4,price_dop!$C$4))+(IF(dop_uslug!$L8=\"да\",price_dop!$B$5,price_dop!$C$5))+(test!$E8*test!$F8)+(IF(dop_uslug!$H8=\"да\",price_dop!$B$3,price_dop!$C$3)*dop_uslug!$I8),\"\")","v":525},7,{"$f":"IFERROR(INDEX(card!$B$2:$E$102,MATCH($H8,\ncard!$B$2:$B$102),2),\"\")","v":"ишметов"},{"$f":"IFERROR(INDEX(card!$B$2:$E$102,MATCH($H8,\ncard!$B$2:$B$102),3),\"\")","v":"руслан"},{"$f":"IFERROR(INDEX(card!$B$2:$E$102,MATCH($H8,\ncard!$B$2:$B$102),4),\"\")","v":"фаритович"},"высоцкого 101/45","8-000-000-00-00"]
[8,"2016-01-10","дом","уборка",120,{"$f":"IFERROR(IF(COUNTA(C9:E9),INDEX(IF(C9=\"дом\",price_home!$B$3:$E$4,price_kvart!$B$3:$E$4),MATCH(D9,price_kvart!$A$3:$A$4,0),MATCH(E9,price_kvart!$B$2:$E$2)),\"\"),\"\")","v":48},{"$f":"IFERROR((IF(dop_uslug!$K9=\"да\",price_dop!$B$4,price_dop!$C$4))+(IF(dop_uslug!$L9=\"да\",price_dop!$B$5,price_dop!$C$5))+(test!$E9*test!$F9)+(IF(dop_uslug!$H9=\"да\",price_dop!$B$3,price_dop!$C$3)*dop_uslug!$I9),\"\")","v":6560},7,{"$f":"IFERROR(INDEX(card!$B$2:$E$102,MATCH($H9,\ncard!$B$2:$B$102),2),\"\")","v":"ишметов"},{"$f":"IFERROR(INDEX(card!$B$2:$E$102,MATCH($H9,\ncard!$B$2:$B$102),3),\"\")","v":"руслан"},{"$f":"IFERROR(INDEX(card!$B$2:$E$102,MATCH($H9,\ncard!$B$2:$B$102),4),\"\")","v":"фаритович"},"высоцкого 101/45","8-000-000-00-00"]
[{"$f":"ROW()-1","v":9},"2016-01-11","дом","уборка",50,{"$f":"IFERROR(IF(COUNTA(C10:E10),INDEX(IF(C10=\"дом\",price_home!$B$3:$E$4,price_kvart!$B$3:$E$4),MATCH(D10,price_kvart!$A$3:$A$4,0),MATCH(E10,price_kvart!$B$2:$E$2)),\"\"),\"\")","v":40},{"$f":"IFERROR((IF(dop_uslug!$K10=\"да\",price_dop!$B$4,price_dop!$C$4))+(IF(dop_uslug!$L10=\"да\",price_dop!$B$5,price_dop!$C$5))+(test!$E10*test!$F10)+(IF(dop_uslug!$H10=\"да\",price_dop!$B$3,price_dop!$C$3)*dop_uslug!$I10),\"\")","v":2000},6,{"$f":"IFERROR(INDEX(card!$B$2:$E$102,MATCH($H10,\ncard!$B$2:$B$102),2),\"\")","v":"мамонтов"},{"$f":"IFERROR(INDEX(card!$B$2:$E$102,MATCH($H10,\ncard!$B$2:$B$102),3),\"\")","v":"сергей"},{"$f":"IFERROR(INDEX(card!$B$2:$E$102,MATCH($H10,\ncard!$B$2:$B$102),4),\"\")","v":"владимирович"}]

{"sheet":"dop_uslug","index":1,"n_rows":10,"n_cols":19,"rows_kept":10,"cut":false,"hidden":false,"merged":[]}
["№","Фамилия","Имя","Отчество","адрес","дата заказа","тип помещения","окно","цена окно","ковры","стирка","посуда","территория","территория2","территория3","S тер.","Столбец1","Столбец2","Столбец3"]
[{"$f":"test!A2","v":1},{"$f":"Таблица1[[#This Row],[Фамилия]]","v":"сидоров"},{"$f":"Таблица1[[#This Row],[Имя]]","v":"сидр"},{"$f":"Таблица1[[#This Row],[Отчество]]","v":"сидорович"},{"$f":"Таблица1[[#This Row],[адрес]]","v":"гоголя 16/78"},{"$f":"Таблица1[[#This Row],[дата          заказа]]","v":"2016-01-01"},{"$f":"Таблица1[[#This Row],[тип           помещения]]","v":"квартира"},"да",5,"есть","да","да","чистка снега",null,null,null,{"$f":"IF(dop_uslug!$M2=\"промести\",price_dop!$B$6,IF(dop_uslug!$M2=\"чистка снега\",price_dop!$B$7,IF(dop_uslug!$M2=\"чистка крыш\",price_dop!$B$8,IF(price_dop!$B$8,price_dop!$C$8,price_dop!$B$8))))","v":60}]
[{"$f":"test!A3","v":2},{"$f":"Таблица1[[#This Row],[Фамилия]]","v":"булко"},{"$f":"Таблица1[[#This Row],[Имя]]","v":"александр"},{"$f":"Таблица1[[#This Row],[Отчество]]","v":"владимирович"},{"$f":"Таблица1[[#This Row],[адрес]]","v":"кр.проспект 73/4/6"},{"$f":"Таблица1[[#This Row],[дата          заказа]]","v":"2016-01-02"},{"$f":"Таблица1[[#This Row],[тип           помещения]]","v":"дом"},"да",5,"нету",null,null,"чистка снега",null,null,null,{"$f":"IF(dop_uslug!$M3=\"промести\",price_dop!$B$6,IF(dop_uslug!$M3=\"чистка снега\",price_dop!$B$7,IF(dop_uslug!$M3=\"чистка крыш\",price_dop!$B$8,IF(price_dop!$B$8,price_dop!$C$8,price_dop!$B$8))))","v":60}]
[{"$f":"test!A4","v":3},{"$f":"Таблица1[[#This Row],[Фамилия]]","v":"петров"},{"$f":"Таблица1[[#This Row],[Имя]]","v":"петр"},{"$f":"Таблица1[[#This Row],[Отчество]]","v":"петрович"},{"$f":"Таблица1[[#This Row],[адрес]]","v":"гагарина 84/455"},{"$f":"Таблица1[[#This Row],[дата          заказа]]","v":"2016-01-02"},{"$f":"Таблица1[[#This Row],[тип           помещения]]","v":"квартира"},"нет",null,null,null,null,"снег с крыши",null,null,null,{"$f":"IF(dop_uslug!$M4=\"промести\",price_dop!$B$6,IF(dop_uslug!$M4=\"чистка снега\",price_dop!$B$7,IF(dop_uslug!$M4=\"чистка крыш\",price_dop!$B$8,IF(price_dop!$B$8,price_dop!$C$8,price_dop!$B$8))))","v":0}]
[{"$f":"test!A5","v":4},{"$f":"Таблица1[[#This Row],[Фамилия]]","v":"булко"},{"$f":"Таблица1[[#This Row],[Имя]]","v":"александр"},{"$f":"Таблица1[[#This Row],[Отчество]]","v":"владимирович"},{"$f":"Таблица1[[#This Row],[адрес]]","v":"кр.проспект 73/4/6"},{"$f":"Таблица1[[#This Row],[дата          заказа]]","v":"2016-01-02"},{"$f":"Таблица1[[#This Row],[тип           помещения]]","v":"дом"},"нет",null,null,null,null,null,null,null,null,{"$f":"IF(dop_uslug!$M5=\"промести\",price_dop!$B$6,IF(dop_uslug!$M5=\"чистка снега\",price_dop!$B$7,IF(dop_uslug!$M5=\"чистка крыш\",price_dop!$B$8,IF(price_dop!$B$8,price_dop!$C$8,price_dop!$B$8))))","v":0}]
[{"$f":"test!A6","v":5},{"$f":"Таблица1[[#This Row],[Фамилия]]","v":"сидоров"},{"$f":"Таблица1[[#This Row],[Имя]]","v":"сидр"},{"$f":"Таблица1[[#This Row],[Отчество]]","v":"сидорович"},{"$f":"Таблица1[[#This Row],[адрес]]","v":"гоголя 16/78"},{"$f":"Таблица1[[#This Row],[дата          заказа]]","v":"2016-01-06"},{"$f":"Таблица1[[#This Row],[тип           помещения]]","v":"квартира"},"нет",null,null,null,null,null,null,null,null,{"$f":"IF(dop_uslug!$M6=\"промести\",price_dop!$B$6,IF(dop_uslug!$M6=\"чистка снега\",price_dop!$B$7,IF(dop_uslug!$M6=\"чистка крыш\",price_dop!$B$8,IF(price_dop!$B$8,price_dop!$C$8,price_dop!$B$8))))","v":0}]
[{"$f":"test!A7","v":6},{"$f":"Таблица1[[#This Row],[Фамилия]]","v":"петров"},{"$f":"Таблица1[[#This Row],[Имя]]","v":"петр"},{"$f":"Таблица1[[#This Row],[Отчество]]","v":"петрович"},{"$f":"Таблица1[[#This Row],[адрес]]","v":"гагарина 84/455"},{"$f":"Таблица1[[#This Row],[дата          заказа]]","v":"2016-01-07"},{"$f":"Таблица1[[#This Row],[тип           помещения]]","v":"дом"},"да",4,null,null,null,null,null,null,null,{"$f":"IF(dop_uslug!$M7=\"промести\",price_dop!$B$6,IF(dop_uslug!$M7=\"чистка снега\",price_dop!$B$7,IF(dop_uslug!$M7=\"чистка крыш\",price_dop!$B$8,IF(price_dop!$B$8,price_dop!$C$8,price_dop!$B$8))))","v":0}]
[{"$f":"test!A8","v":7},{"$f":"Таблица1[[#This Row],[Фамилия]]","v":"ишметов"},{"$f":"Таблица1[[#This Row],[Имя]]","v":"руслан"},{"$f":"Таблица1[[#This Row],[Отчество]]","v":"фаритович"},{"$f":"Таблица1[[#This Row],[адрес]]","v":"высоцкого 101/45"},{"$f":"Таблица1[[#This Row],[дата          заказа]]","v":"2016-01-08"},{"$f":"Таблица1[[#This Row],[тип           помещения]]","v":"квартира"},null,null,null,null,null,null,null,null,null,{"$f":"IF(dop_uslug!$M8=\"промести\",price_dop!$B$6,IF(dop_uslug!$M8=\"чистка снега\",price_dop!$B$7,IF(dop_uslug!$M8=\"чистка крыш\",price_dop!$B$8,IF(price_dop!$B$8,price_dop!$C$8,price_dop!$B$8))))","v":0}]
[{"$f":"test!A9","v":8},{"$f":"Таблица1[[#This Row],[Фамилия]]","v":"ишметов"},{"$f":"Таблица1[[#This Row],[Имя]]","v":"руслан"},{"$f":"Таблица1[[#This Row],[Отчество]]","v":"фаритович"},{"$f":"Таблица1[[#This Row],[адрес]]","v":"высоцкого 101/45"},{"$f":"Таблица1[[#This Row],[дата          заказа]]","v":"2016-01-10"},{"$f":"Таблица1[[#This Row],[тип           помещения]]","v":"дом"},null,4,"нету","да","да",null,null,null,null,{"$f":"IF(dop_uslug!$M9=\"промести\",price_dop!$B$6,IF(dop_uslug!$M9=\"чистка снега\",price_dop!$B$7,IF(dop_uslug!$M9=\"чистка крыш\",price_dop!$B$8,IF(price_dop!$B$8,price_dop!$C$8,price_dop!$B$8))))","v":0}]
[{"$f":"test!A10","v":9},{"$f":"Таблица1[[#This Row],[Фамилия]]","v":"мамонтов"},{"$f":"Таблица1[[#This Row],[Имя]]","v":"сергей"},{"$f":"Таблица1[[#This Row],[Отчество]]","v":"владимирович"},{"$f":"Таблица1[[#This Row],[адрес]]","v":0},{"$f":"Таблица1[[#This Row],[дата          заказа]]","v":"2016-01-11"},{"$f":"Таблица1[[#This Row],[тип           помещения]]","v":"дом"},null,null,null,null,null,null,null,null,null,{"$f":"IF(dop_uslug!$M10=\"промести\",price_dop!$B$6,IF(dop_uslug!$M10=\"чистка снега\",price_dop!$B$7,IF(dop_uslug!$M10=\"чистка крыш\",price_dop!$B$8,IF(price_dop!$B$8,price_dop!$C$8,price_dop!$B$8))))","v":0}]

{"sheet":"price_dop","index":2,"n_rows":8,"n_cols":3,"rows_kept":8,"cut":false,"hidden":false,"merged":[]}
[]
["доп.услага",1,"нет"]
["окна",300,0]
["стирка",300,0]
["посуда",500,0]
["прометание территории",30,0]
["чистка снега",60,0]
["чистка крыш",150,0]

{"sheet":"price_kvart","index":3,"n_rows":6,"n_cols":5,"rows_kept":6,"cut":false,"hidden":false,"merged":[]}
[]
["квартира",1,81,151,251]
["уборка",35,33,31,29]
["послестрой",60,57,54,51]
["посуда",500,500,500,500]
["окна",300,300,300,300]

{"sheet":"price_home","index":4,"n_rows":4,"n_cols":5,"rows_kept":4,"cut":false,"hidden":false,"merged":[]}
[]
["дом",1,81,151,251]
["уборка",40,48,46,44]
["послестрой",70,67,64,61]

{"sheet":"formula","index":5,"n_rows":21,"n_cols":14,"rows_kept":21,"cut":false,"hidden":false,"merged":[]}
["форм","тип помещения","услуг","доп услуги","ковры","окно","территория","стирка/посуда"]
[]
[null,"квартира","уборка","стирка","есть","да","промести","нет"]
[null,"дом","послестрой","посуда","нету","нет","чистка снега","да"]
[null,null,null,null,null,null,"снег с крыши"]
[]
[]
[null,null,null,null,null,null,null,null,null,null,null,"цена за м2",null,"автоматическое выставление по карте"]
[null,null,null,null,null,null,null,null,null,null,null,{"$f":"IF(COUNTA(test!$C2:$E2),INDEX(IF(test!C2=\"дом\",price_home!$B$3:$E$4,price_kvart!$B$3:$E$4),MATCH(test!D2,price_kvart!$A$3:$A$4,0),MATCH(test!E2,price_kvart!$B$2:$E$2)),\"\")","v":33},null,"ИНДЕКС(card!$B$2:$E$102;ПОИСКПОЗ(test!$H2;card!$B$2:$B$102);2)"]
[null,null,null,null,null,null,null,{"$f":"9/1.5","v":6},null,null,null,null,null,"ИНДЕКС(card!$B$2:$E$102;ПОИСКПОЗ(test!$H2;card!$B$2:$B$102);3)"]
[null,null,null,null,null,null,null,null,null,{"$f":"3000000/68","v":44117.647058823532},null,"стирка (да/нет)",null,"ИНДЕКС(card!$B$2:$E$102;ПОИСКПОЗ(test!$H2;card!$B$2:$B$102);4)"]
[null,null,null,null,null,null,null,null,null,null,null,{"$f":"IF(dop_uslug!$K2=\"да\",price_dop!$B$4,price_dop!$C$4)","v":300}]
[]
[null,null,null,null,null,null,null,null,null,null,null,"посуда (да/нет)",null,"посуда, стирка (доп усл1)"]
[null,null,null,null,null,null,null,null,null,null,null,{"$f":"IF(dop_uslug!$L2=\"да\",price_dop!$B$5,price_dop!$C$5)","v":500},null,"ЕСЛИ(dop_uslug!$K2=\"стирка\";price_dop!$B$4;ЕСЛИ(dop_uslug!$K2=\"посуда\";price_dop!$B$5;price_dop!$C$4))"]
[]
[null,null,null,null,null,null,null,null,null,null,null,"площадь*цену",null,"скрыть #р/д"]
[null,null,null,null,null,null,null,null,null,null,null,{"$f":"test!$E2*test!$F2","v":2673},null,"ЕСЛИОШИБКА(          ;\"\")"]
[]
[null,null,null,null,null,null,null,null,null,null,null,"ОКНА"]
[null,null,null,null,null,null,null,null,null,null,null,{"$f":"IF(dop_uslug!$H2=\"да\",price_dop!$B$3,price_dop!$C$3)*dop_uslug!$I2","v":1500}]

{"sheet":"card","index":6,"n_rows":102,"n_cols":10,"rows_kept":102,"cut":false,"hidden":false,"merged":[]}
["п/п","№ карты","Фамилия","Имя","Отчество","%","коэф","телефон","e-mail","адрес"]
[]
[1,1,"иванов","иван","иванович",5,{"$f":"F3/100","v":0.05}]
[2,2,"булко","александр","владимирович",10,{"$f":"F4/100","v":0.1}]
[3,3,"сергеев","сергей","сергеевич",15,0.15]
[4,4,"петров","петр","петрович",null,0]
[5,5,"сидоров","сидр","сидорович",null,0]
[6,6,"мамонтов","сергей","владимирович",null,0]
[7,7,"ишметов","руслан","фаритович",null,0]
[8,8,"смирнов","смирн","смирнович",null,0]
[9,9,"мудоков","мудак","мудакович",null,0]
[10,10,null,null,null,null,0]
[11,11,null,null,null,null,0]
[12,12,null,null,null,null,0]
[13,13,null,null,null,null,0]
[14,14,null,null,null,null,0]
[15,15,null,null,null,null,0]
[16,16,null,null,null,null,0]
[17,17,null,null,null,null,0]
[18,18,null,null,null,null,0]
[19,19,null,null,null,null,0]
[20,20,null,null,null,null,0]
[21,21,null,null,null,null,0]
[22,22,null,null,null,null,0]
[23,23,null,null,null,null,0]
[24,24,null,null,null,null,0]
[25,25,null,null,null,null,0]
[26,26,null,null,null,null,0]
[27,27,null,null,null,null,0]
[28,28,null,null,null,null,0]
[29,29,null,null,null,null,0]
[30,30,null,null,null,null,0]
[31,31,null,null,null,null,0]
[32,32,null,null,null,null,0]
[33,33,null,null,null,null,0]
[34,34,null,null,null,null,0]
[35,35,null,null,null,null,0]
[36,36,null,null,null,null,0]
[37,37,null,null,null,null,0]
[38,38,null,null,null,null,0]
[39,39,null,null,null,null,0]
[40,40,null,null,null,null,0]
[41,41,null,null,null,null,0]
[42,42,null,null,null,null,0]
[43,43,null,null,null,null,0]
[44,44,null,null,null,null,0]
[45,45,null,null,null,null,0]
[46,46,null,null,null,null,0]
[47,47,null,null,null,null,0]
[48,48,null,null,null,null,0]
[49,49,null,null,null,null,0]
[50,50,null,null,null,null,0]
[51,51,null,null,null,null,0]
[52,52,null,null,null,null,0]
[53,53,null,null,null,null,0]
[54,54,null,null,null,null,0]
[55,55,null,null,null,null,0]
[56,56,null,null,null,null,0]
[57,57,null,null,null,null,0]
[58,58,null,null,null,null,0]
[59,59,null,null,null,null,0]
[60,60,null,null,null,null,0]
[61,61,null,null,null,null,0]
[62,62,null,null,null,null,0]
[63,63,null,null,null,null,0]
[64,64,null,null,null,null,0]
[65,65,null,null,null,null,0]
[66,66,null,null,null,null,{"$f":"F68/100","v":0}]
[67,67,null,null,null,null,0]
[68,68,null,null,null,null,0]
[69,69,null,null,null,null,0]
[70,70,null,null,null,null,0]
[71,71,null,null,null,null,0]
[72,72,null,null,null,null,0]
[73,73,null,null,null,null,0]
[74,74,null,null,null,null,0]
[75,75,null,null,null,null,0]
[76,76,null,null,null,null,0]
[77,77,null,null,null,null,0]
[78,78,null,null,null,null,0]
[79,79,null,null,null,null,0]
[80,80,null,null,null,null,0]
[81,81,null,null,null,null,0]
[82,82,null,null,null,null,0]
[83,83,null,null,null,null,0]
[84,84,null,null,null,null,0]
[85,85,null,null,null,null,0]
[86,86,null,null,null,null,0]
[87,87,null,null,null,null,0]
[88,88,null,null,null,null,0]
[89,89,null,null,null,null,0]
[90,90,null,null,null,null,0]
[91,91,null,null,null,null,0]
[92,92,null,null,null,null,0]
[93,93,null,null,null,null,0]
[94,94,null,null,null,null,0]
[95,95,null,null,null,null,0]
[96,96,null,null,null,null,0]
[97,97,null,null,null,null,0]
[98,98,null,null,null,null,0]
[99,99,null,null,null,null,0]
[100,100,null,null,null,null,0]

{"sheet":"инф","index":7,"n_rows":15,"n_cols":4,"rows_kept":15,"cut":false,"hidden":false,"merged":[]}
[]
[null,"цена за м2"]
[null,"ЕСЛИ(СЧЁТЗ(test!C2:E2);ИНДЕКС(ЕСЛИ(test!C2=\"дом\";price_home!$B$3:$E$4;price_kvart!$B$3:$E$4);ПОИСКПОЗ(test!D2;price_kvart!$A$3:$A$4;0);ПОИСКПОЗ(test!E2;price_kvart!$B$2:$E$2));\"\")",null,"автоматическое выставление по карте"]
[null,null,null,"ИНДЕКС(card!$B$2:$E$102;ПОИСКПОЗ(test!$H2;card!$B$2:$B$102);2)"]
[null,"стирка (да/нет)",null,"ИНДЕКС(card!$B$2:$E$102;ПОИСКПОЗ(test!$H2;card!$B$2:$B$102);3)"]
[null,"ЕСЛИ(dop_uslug!$K2=\"да\";price_dop!$B$4;price_dop!$C$4)",null,"ИНДЕКС(card!$B$2:$E$102;ПОИСКПОЗ(test!$H2;card!$B$2:$B$102);4)"]
[]
[null,"посуда (да/нет)",null,"посуда, стирка (доп усл1)"]
[null,"ЕСЛИ(dop_uslug!$L2=\"да\";price_dop!$B$5;price_dop!$C$5)",null,"ЕСЛИ(dop_uslug!$K2=\"стирка\";price_dop!$B$4;ЕСЛИ(dop_uslug!$K2=\"посуда\";price_dop!$B$5;price_dop!$C$4))"]
[]
[null,"площадь*цену",null,"скрыть #р/д"]
[null,"test!$e2*test!$f2",null,"ЕСЛИОШИБКА(          ;\"\")"]
[]
[null,"ОКНА"]
[null,"ЕСЛИ(dop_uslug!H2=\"да\";price_dop!$B$3;price_dop!$C$3)*dop_uslug!$I2"]

{"sheet":"dop_uslug (2)","index":8,"n_rows":110,"n_cols":19,"rows_kept":110,"cut":false,"hidden":false,"merged":[]}
["№","Фамилия","Имя","Отчество","адрес","дата заказа","тип помещения","окно","цена окно","ковры","доп усл1","доп усл2","доп усл3","доп усл4","территория","S тер.","доп.услуга1","доп.услуга2","итого"]
[{"$f":"Таблица1[[#This Row],[№]]","v":1},{"$f":"Таблица1[[#This Row],[Фамилия]]","v":"сидоров"},{"$f":"Таблица1[[#This Row],[Имя]]","v":"сидр"},{"$f":"Таблица1[[#This Row],[Отчество]]","v":"сидорович"},{"$f":"Таблица1[[#This Row],[адрес]]","v":"гоголя 16/78"},{"$f":"Таблица1[[#This Row],[дата          заказа]]","v":"2016-01-01"},{"$f":"Таблица1[[#This Row],[тип           помещения]]","v":"квартира"},"да",5,null,"посуда","стирка",null,null,null,null,{"$f":"IF('dop_uslug (2)'!$K2=\"стирка\",price_dop!$B$4,IF('dop_uslug (2)'!$K2=\"посуда\",price_dop!$B$5,price_dop!$C$4))","v":500},{"$f":"IF('dop_uslug (2)'!$L2=\"стирка\",price_dop!$B$4,IF('dop_uslug (2)'!$L2=\"посуда\",price_dop!$B$5,price_dop!$C$4))","v":300},{"$f":"Таблица24[[#This Row],[доп.услуга1]]+Таблица24[[#This Row],[доп.услуга2]]","v":800}]
[{"$f":"Таблица1[[#This Row],[№]]","v":2},{"$f":"Таблица1[[#This Row],[Фамилия]]","v":"булко"},{"$f":"Таблица1[[#This Row],[Имя]]","v":"александр"},{"$f":"Таблица1[[#This Row],[Отчество]]","v":"владимирович"},{"$f":"Таблица1[[#This Row],[адрес]]","v":"кр.проспект 73/4/6"},{"$f":"Таблица1[[#This Row],[дата          заказа]]","v":"2016-01-02"},{"$f":"Таблица1[[#This Row],[тип           помещения]]","v":"дом"},"нет",5,null,null,null,null,null,null,null,{"$f":"IF('dop_uslug (2)'!$K3=\"стирка\",price_dop!$B$4,IF('dop_uslug (2)'!$K3=\"посуда\",price_dop!$B$5,price_dop!$C$4))","v":0},{"$f":"IF('dop_uslug (2)'!$L3=\"стирка\",price_dop!$B$4,IF('dop_uslug (2)'!$L3=\"посуда\",price_dop!$B$5,price_dop!$C$4))","v":0},{"$f":"Таблица24[[#This Row],[доп.услуга1]]+Таблица24[[#This Row],[доп.услуга2]]","v":0}]
[{"$f":"Таблица1[[#This Row],[№]]","v":3},{"$f":"Таблица1[[#This Row],[Фамилия]]","v":"петров"},{"$f":"Таблица1[[#This Row],[Имя]]","v":"петр"},{"$f":"Таблица1[[#This Row],[Отчество]]","v":"петрович"},{"$f":"Таблица1[[#This Row],[адрес]]","v":"гагарина 84/455"},{"$f":"Таблица1[[#This Row],[дата          заказа]]","v":"2016-01-02"},{"$f":"Таблица1[[#This Row],[тип           помещения]]","v":"квартира"},null,null,null,null,null,null,null,null,null,{"$f":"IF('dop_uslug (2)'!$K4=\"стирка\",price_dop!$B$4,IF('dop_uslug (2)'!$K4=\"посуда\",price_dop!$B$5,price_dop!$C$4))","v":0},{"$f":"IF('dop_uslug (2)'!$L4=\"стирка\",price_dop!$B$4,IF('dop_uslug (2)'!$L4=\"посуда\",price_dop!$B$5,price_dop!$C$4))","v":0},{"$f":"Таблица24[[#This Row],[доп.услуга1]]+Таблица24[[#This Row],[доп.услуга2]]","v":0}]
[{"$f":"Таблица1[[#This Row],[№]]","v":4},{"$f":"Таблица1[[#This Row],[Фамилия]]","v":"булко"},{"$f":"Таблица1[[#This Row],[Имя]]","v":"александр"},{"$f":"Таблица1[[#This Row],[Отчество]]","v":"владимирович"},{"$f":"Таблица1[[#This Row],[адрес]]","v":"кр.проспект 73/4/6"},{"$f":"Таблица1[[#This Row],[дата          заказа]]","v":"2016-01-02"},{"$f":"Таблица1[[#This Row],[тип           помещения]]","v":"дом"},null,null,null,null,null,null,null,null,null,{"$f":"IF('dop_uslug (2)'!$K5=\"стирка\",price_dop!$B$4,IF('dop_uslug (2)'!$K5=\"посуда\",price_dop!$B$5,price_dop!$C$4))","v":0},{"$f":"IF('dop_uslug (2)'!$L5=\"стирка\",price_dop!$B$4,IF('dop_uslug (2)'!$L5=\"посуда\",price_dop!$B$5,price_dop!$C$4))","v":0},{"$f":"Таблица24[[#This Row],[доп.услуга1]]+Таблица24[[#This Row],[доп.услуга2]]","v":0}]
[{"$f":"Таблица1[[#This Row],[№]]","v":5},{"$f":"Таблица1[[#This Row],[Фамилия]]","v":"сидоров"},{"$f":"Таблица1[[#This Row],[Имя]]","v":"сидр"},{"$f":"Таблица1[[#This Row],[Отчество]]","v":"сидорович"},{"$f":"Таблица1[[#This Row],[адрес]]","v":"гоголя 16/78"},{"$f":"Таблица1[[#This Row],[дата          заказа]]","v":"2016-01-06"},{"$f":"Таблица1[[#This Row],[тип           помещения]]","v":"квартира"},null,null,null,null,null,null,null,null,null,{"$f":"IF('dop_uslug (2)'!$K6=\"стирка\",price_dop!$B$4,IF('dop_uslug (2)'!$K6=\"посуда\",price_dop!$B$5,price_dop!$C$4))","v":0},{"$f":"IF('dop_uslug (2)'!$L6=\"стирка\",price_dop!$B$4,IF('dop_uslug (2)'!$L6=\"посуда\",price_dop!$B$5,price_dop!$C$4))","v":0},{"$f":"Таблица24[[#This Row],[доп.услуга1]]+Таблица24[[#This Row],[доп.услуга2]]","v":0}]
[{"$f":"Таблица1[[#This Row],[№]]","v":6},{"$f":"Таблица1[[#This Row],[Фамилия]]","v":"петров"},{"$f":"Таблица1[[#This Row],[Имя]]","v":"петр"},{"$f":"Таблица1[[#This Row],[Отчество]]","v":"петрович"},{"$f":"Таблица1[[#This Row],[адрес]]","v":"гагарина 84/455"},{"$f":"Таблица1[[#This Row],[дата          заказа]]","v":"2016-01-07"},{"$f":"Таблица1[[#This Row],[тип           помещения]]","v":"дом"},null,null,null,null,null,null,null,null,null,{"$f":"IF('dop_uslug (2)'!$K7=\"стирка\",price_dop!$B$4,IF('dop_uslug (2)'!$K7=\"посуда\",price_dop!$B$5,price_dop!$C$4))","v":0},{"$f":"IF('dop_uslug (2)'!$L7=\"стирка\",price_dop!$B$4,IF('dop_uslug (2)'!$L7=\"посуда\",price_dop!$B$5,price_dop!$C$4))","v":0},{"$f":"Таблица24[[#This Row],[доп.услуга1]]+Таблица24[[#This Row],[доп.услуга2]]","v":0}]
[{"$f":"Таблица1[[#This Row],[№]]","v":7},{"$f":"Таблица1[[#This Row],[Фамилия]]","v":"ишметов"},{"$f":"Таблица1[[#This Row],[Имя]]","v":"руслан"},{"$f":"Таблица1[[#This Row],[Отчество]]","v":"фаритович"},{"$f":"Таблица1[[#This Row],[адрес]]","v":"высоцкого 101/45"},{"$f":"Таблица1[[#This Row],[дата          заказа]]","v":"2016-01-08"},{"$f":"Таблица1[[#This Row],[тип           помещения]]","v":"квартира"},null,null,null,null,null,null,null,null,null,{"$f":"IF('dop_uslug (2)'!$K8=\"стирка\",price_dop!$B$4,IF('dop_uslug (2)'!$K8=\"посуда\",price_dop!$B$5,price_dop!$C$4))","v":0},{"$f":"IF('dop_uslug (2)'!$L8=\"стирка\",price_dop!$B$4,IF('dop_uslug (2)'!$L8=\"посуда\",price_dop!$B$5,price_dop!$C$4))","v":0},{"$f":"Таблица24[[#This Row],[доп.услуга1]]+Таблица24[[#This Row],[доп.услуга2]]","v":0}]
[{"$f":"Таблица1[[#This Row],[№]]","v":8},{"$f":"Таблица1[[#This Row],[Фамилия]]","v":"ишметов"},{"$f":"Таблица1[[#This Row],[Имя]]","v":"руслан"},{"$f":"Таблица1[[#This Row],[Отчество]]","v":"фаритович"},{"$f":"Таблица1[[#This Row],[адрес]]","v":"высоцкого 101/45"},{"$f":"Таблица1[[#This Row],[дата          заказа]]","v":"2016-01-10"},{"$f":"Таблица1[[#This Row],[тип           помещения]]","v":"дом"},null,null,null,null,null,null,null,null,null,{"$f":"IF('dop_uslug (2)'!$K9=\"стирка\",price_dop!$B$4,IF('dop_uslug (2)'!$K9=\"посуда\",price_dop!$B$5,price_dop!$C$4))","v":0},{"$f":"IF('dop_uslug (2)'!$L9=\"стирка\",price_dop!$B$4,IF('dop_uslug (2)'!$L9=\"посуда\",price_dop!$B$5,price_dop!$C$4))","v":0},{"$f":"Таблица24[[#This Row],[доп.услуга1]]+Таблица24[[#This Row],[доп.услуга2]]","v":0}]
[{"$f":"Таблица1[[#This Row],[№]]","v":9},{"$f":"Таблица1[[#This Row],[Фамилия]]","v":"мамонтов"},{"$f":"Таблица1[[#This Row],[Имя]]","v":"сергей"},{"$f":"Таблица1[[#This Row],[Отчество]]","v":"владимирович"},{"$f":"Таблица1[[#This Row],[адрес]]","v":0},{"$f":"Таблица1[[#This Row],[дата          заказа]]","v":"2016-01-11"},{"$f":"Таблица1[[#This Row],[тип           помещения]]","v":"дом"},null,null,null,null,null,null,null,null,null,{"$f":"IF('dop_uslug (2)'!$K10=\"стирка\",price_dop!$B$4,IF('dop_uslug (2)'!$K10=\"посуда\",price_dop!$B$5,price_dop!$C$4))","v":0},{"$f":"IF('dop_uslug (2)'!$L10=\"стирка\",price_dop!$B$4,IF('dop_uslug (2)'!$L10=\"посуда\",price_dop!$B$5,price_dop!$C$4))","v":0},{"$f":"Таблица24[[#This Row],[доп.услуга1]]+Таблица24[[#This Row],[доп.услуга2]]","v":0}]
[{"$f":"Таблица1[[#This Row],[№]]","v":{"$error":"#VALUE!"}},{"$f":"Таблица1[[#This Row],[Фамилия]]","v":{"$error":"#VALUE!"}},{"$f":"Таблица1[[#This Row],[Имя]]","v":{"$error":"#VALUE!"}},{"$f":"Таблица1[[#This Row],[Отчество]]","v":{"$error":"#VALUE!"}},{"$f":"Таблица1[[#This Row],[адрес]]","v":{"$error":"#VALUE!"}},{"$f":"Таблица1[[#This Row],[дата          заказа]]","v":{"$error":"#VALUE!"}},{"$f":"Таблица1[[#This Row],[тип           помещения]]","v":{"$error":"#VALUE!"}},null,null,null,null,null,null,null,null,null,{"$f":"IF('dop_uslug (2)'!$K11=\"стирка\",price_dop!$B$4,IF('dop_uslug (2)'!$K11=\"посуда\",price_dop!$B$5,price_dop!$C$4))","v":0},{"$f":"IF('dop_uslug (2)'!$L11=\"стирка\",price_dop!$B$4,IF('dop_uslug (2)'!$L11=\"посуда\",price_dop!$B$5,price_dop!$C$4))","v":0},{"$f":"Таблица24[[#This Row],[доп.услуга1]]+Таблица24[[#This Row],[доп.услуга2]]","v":0}]
[{"$f":"Таблица1[[#This Row],[№]]","v":{"$error":"#VALUE!"}},{"$f":"Таблица1[[#This Row],[Фамилия]]","v":{"$error":"#VALUE!"}},{"$f":"Таблица1[[#This Row],[Имя]]","v":{"$error":"#VALUE!"}},{"$f":"Таблица1[[#This Row],[Отчество]]","v":{"$error":"#VALUE!"}},{"$f":"Таблица1[[#This Row],[адрес]]","v":{"$error":"#VALUE!"}},{"$f":"Таблица1[[#This Row],[дата          заказа]]","v":{"$error":"#VALUE!"}},{"$f":"Таблица1[[#This Row],[тип           помещения]]","v":{"$error":"#VALUE!"}},null,null,null,null,null,null,null,null,null,{"$f":"IF('dop_uslug (2)'!$K12=\"стирка\",price_dop!$B$4,IF('dop_uslug (2)'!$K12=\"посуда\",price_dop!$B$5,price_dop!$C$4))","v":0},{"$f":"IF('dop_uslug (2)'!$L12=\"стирка\",price_dop!$B$4,IF('dop_uslug (2)'!$L12=\"посуда\",price_dop!$B$5,price_dop!$C$4))","v":0},{"$f":"Таблица24[[#This Row],[доп.услуга1]]+Таблица24[[#This Row],[доп.услуга2]]","v":0}]
[{"$f":"Таблица1[[#This Row],[№]]","v":{"$error":"#VALUE!"}},{"$f":"Таблица1[[#This Row],[Фамилия]]","v":{"$error":"#VALUE!"}},{"$f":"Таблица1[[#This Row],[Имя]]","v":{"$error":"#VALUE!"}},{"$f":"Таблица1[[#This Row],[Отчество]]","v":{"$error":"#VALUE!"}},{"$f":"Таблица1[[#This Row],[адрес]]","v":{"$error":"#VALUE!"}},{"$f":"Таблица1[[#This Row],[дата          заказа]]","v":{"$error":"#VALUE!"}},{"$f":"Таблица1[[#This Row],[тип           помещения]]","v":{"$error":"#VALUE!"}},null,null,null,null,null,null,null,null,null,{"$f":"IF('dop_uslug (2)'!$K13=\"стирка\",price_dop!$B$4,IF('dop_uslug (2)'!$K13=\"посуда\",price_dop!$B$5,price_dop!$C$4))","v":0},{"$f":"IF('dop_uslug (2)'!$L13=\"стирка\",price_dop!$B$4,IF('dop_uslug (2)'!$L13=\"посуда\",price_dop!$B$5,price_dop!$C$4))","v":0},{"$f":"Таблица24[[#This Row],[доп.услуга1]]+Таблица24[[#This Row],[доп.услуга2]]","v":0}]
[{"$f":"Таблица1[[#This Row],[№]]","v":{"$error":"#VALUE!"}},{"$f":"Таблица1[[#This Row],[Фамилия]]","v":{"$error":"#VALUE!"}},{"$f":"Таблица1[[#This Row],[Имя]]","v":{"$error":"#VALUE!"}},{"$f":"Таблица1[[#This Row],[Отчество]]","v":{"$error":"#VALUE!"}},{"$f":"Таблица1[[#This Row],[адрес]]","v":{"$error":"#VALUE!"}},{"$f":"Таблица1[[#This Row],[дата          заказа]]","v":{"$error":"#VALUE!"}},{"$f":"Таблица1[[#This Row],[тип           помещения]]","v":{"$error":"#VALUE!"}},null,null,null,null,null,null,null,null,null,{"$f":"IF('dop_uslug (2)'!$K14=\"стирка\",price_dop!$B$4,IF('dop_uslug (2)'!$K14=\"посуда\",price_dop!$B$5,price_dop!$C$4))","v":0},{"$f":"IF('dop_uslug (2)'!$L14=\"стирка\",price_dop!$B$4,IF('dop_uslug (2)'!$L14=\"посуда\",price_dop!$B$5,price_dop!$C$4))","v":0},{"$f":"Таблица24[[#This Row],[доп.услуга1]]+Таблица24[[#This Row],[доп.услуга2]]","v":0}]
[{"$f":"Таблица1[[#This Row],[№]]","v":{"$error":"#VALUE!"}},{"$f":"Таблица1[[#This Row],[Фамилия]]","v":{"$error":"#VALUE!"}},{"$f":"Таблица1[[#This Row],[Имя]]","v":{"$error":"#VALUE!"}},{"$f":"Таблица1[[#This Row],[Отчество]]","v":{"$error":"#VALUE!"}},{"$f":"Таблица1[[#This Row],[адрес]]","v":{"$error":"#VALUE!"}},{"$f":"Таблица1[[#This Row],[дата          заказа]]","v":{"$error":"#VALUE!"}},{"$f":"Таблица1[[#This Row],[тип           помещения]]","v":{"$error":"#VALUE!"}},null,null,null,null,null,null,null,null,null,{"$f":"IF('dop_uslug (2)'!$K15=\"стирка\",price_dop!$B$4,IF('dop_uslug (2)'!$K15=\"посуда\",price_dop!$B$5,price_dop!$C$4))","v":0},{"$f":"IF('dop_uslug (2)'!$L15=\"стирка\",price_dop!$B$4,IF('dop_uslug (2)'!$L15=\"посуда\",price_dop!$B$5,price_dop!$C$4))","v":0},{"$f":"Таблица24[[#This Row],[доп.услуга1]]+Таблица24[[#This Row],[доп.услуга2]]","v":0}]
[{"$f":"Таблица1[[#This Row],[№]]","v":{"$error":"#VALUE!"}},{"$f":"Таблица1[[#This Row],[Фамилия]]","v":{"$error":"#VALUE!"}},{"$f":"Таблица1[[#This Row],[Имя]]","v":{"$error":"#VALUE!"}},{"$f":"Таблица1[[#This Row],[Отчество]]","v":{"$error":"#VALUE!"}},{"$f":"Таблица1[[#This Row],[адрес]]","v":{"$error":"#VALUE!"}},{"$f":"Таблица1[[#This Row],[дата          заказа]]","v":{"$error":"#VALUE!"}},{"$f":"Таблица1[[#This Row],[тип           помещения]]","v":{"$error":"#VALUE!"}},null,null,null,null,null,null,null,null,null,{"$f":"IF('dop_uslug (2)'!$K16=\"стирка\",price_dop!$B$4,IF('dop_uslug (2)'!$K16=\"посуда\",price_dop!$B$5,price_dop!$C$4))","v":0},{"$f":"IF('dop_uslug (2)'!$L16=\"стирка\",price_dop!$B$4,IF('dop_uslug (2)'!$L16=\"посуда\",price_dop!$B$5,price_dop!$C$4))","v":0},{"$f":"Таблица24[[#This Row],[доп.услуга1]]+Таблица24[[#This Row],[доп.услуга2]]","v":0}]
[{"$f":"Таблица1[[#This Row],[№]]","v":{"$error":"#VALUE!"}},{"$f":"Таблица1[[#This Row],[Фамилия]]","v":{"$error":"#VALUE!"}},{"$f":"Таблица1[[#This Row],[Имя]]","v":{"$error":"#VALUE!"}},{"$f":"Таблица1[[#This Row],[Отчество]]","v":{"$error":"#VALUE!"}},{"$f":"Таблица1[[#This Row],[адрес]]","v":{"$error":"#VALUE!"}},{"$f":"Таблица1[[#This Row],[дата          заказа]]","v":{"$error":"#VALUE!"}},{"$f":"Таблица1[[#This Row],[тип           помещения]]","v":{"$error":"#VALUE!"}},null,null,null,null,null,null,null,null,null,{"$f":"IF('dop_uslug (2)'!$K17=\"стирка\",price_dop!$B$4,IF('dop_uslug (2)'!$K17=\"посуда\",price_dop!$B$5,price_dop!$C$4))","v":0},{"$f":"IF('dop_uslug (2)'!$L17=\"стирка\",price_dop!$B$4,IF('dop_uslug (2)'!$L17=\"посуда\",price_dop!$B$5,price_dop!$C$4))","v":0},{"$f":"Таблица24[[#This Row],[доп.услуга1]]+Таблица24[[#This Row],[доп.услуга2]]","v":0}]
[{"$f":"Таблица1[[#This Row],[№]]","v":{"$error":"#VALUE!"}},{"$f":"Таблица1[[#This Row],[Фамилия]]","v":{"$error":"#VALUE!"}},{"$f":"Таблица1[[#This Row],[Имя]]","v":{"$error":"#VALUE!"}},{"$f":"Таблица1[[#This Row],[Отчество]]","v":{"$error":"#VALUE!"}},{"$f":"Таблица1[[#This Row],[адрес]]","v":{"$error":"#VALUE!"}},{"$f":"Таблица1[[#This Row],[дата          заказа]]","v":{"$error":"#VALUE!"}},{"$f":"Таблица1[[#This Row],[тип           помещения]]","v":{"$error":"#VALUE!"}},null,null,null,null,null,null,null,null,null,{"$f":"IF('dop_uslug (2)'!$K18=\"стирка\",price_dop!$B$4,IF('dop_uslug (2)'!$K18=\"посуда\",price_dop!$B$5,price_dop!$C$4))","v":0},{"$f":"IF('dop_uslug (2)'!$L18=\"стирка\",price_dop!$B$4,IF('dop_uslug (2)'!$L18=\"посуда\",price_dop!$B$5,price_dop!$C$4))","v":0},{"$f":"Таблица24[[#This Row],[доп.услуга1]]+Таблица24[[#This Row],[доп.услуга2]]","v":0}]
[{"$f":"Таблица1[[#This Row],[№]]","v":{"$error":"#VALUE!"}},{"$f":"Таблица1[[#This Row],[Фамилия]]","v":{"$error":"#VALUE!"}},{"$f":"Таблица1[[#This Row],[Имя]]","v":{"$error":"#VALUE!"}},{"$f":"Таблица1[[#This Row],[Отчество]]","v":{"$error":"#VALUE!"}},{"$f":"Таблица1[[#This Row],[адрес]]","v":{"$error":"#VALUE!"}},{"$f":"Таблица1[[#This Row],[дата          заказа]]","v":{"$error":"#VALUE!"}},{"$f":"Таблица1[[#This Row],[тип           помещения]]","v":{"$error":"#VALUE!"}},null,null,null,null,null,null,null,null,null,{"$f":"IF('dop_uslug (2)'!$K19=\"стирка\",price_dop!$B$4,IF('dop_uslug (2)'!$K19=\"посуда\",price_dop!$B$5,price_dop!$C$4))","v":0},{"$f":"IF('dop_uslug (2)'!$L19=\"стирка\",price_dop!$B$4,IF('dop_uslug (2)'!$L19=\"посуда\",price_dop!$B$5,price_dop!$C$4))","v":0},{"$f":"Таблица24[[#This Row],[доп.услуга1]]+Таблица24[[#This Row],[доп.услуга2]]","v":0}]
[{"$f":"Таблица1[[#This Row],[№]]","v":{"$error":"#VALUE!"}},{"$f":"Таблица1[[#This Row],[Фамилия]]","v":{"$error":"#VALUE!"}},{"$f":"Таблица1[[#This Row],[Имя]]","v":{"$error":"#VALUE!"}},{"$f":"Таблица1[[#This Row],[Отчество]]","v":{"$error":"#VALUE!"}},{"$f":"Таблица1[[#This Row],[адрес]]","v":{"$error":"#VALUE!"}},{"$f":"Таблица1[[#This Row],[дата          заказа]]","v":{"$error":"#VALUE!"}},{"$f":"Таблица1[[#This Row],[тип           помещения]]","v":{"$error":"#VALUE!"}},"да",null,null,null,null,null,null,null,null,{"$f":"IF('dop_uslug (2)'!$K20=\"стирка\",price_dop!$B$4,IF('dop_uslug (2)'!$K20=\"посуда\",price_dop!$B$5,price_dop!$C$4))","v":0},{"$f":"IF('dop_uslug (2)'!$L20=\"стирка\",price_dop!$B$4,IF('dop_uslug (2)'!$L20=\"посуда\",price_dop!$B$5,price_dop!$C$4))","v":0},{"$f":"Таблица24[[#This Row],[доп.услуга1]]+Таблица24[[#This Row],[доп.услуга2]]","v":0}]
[{"$f":"Таблица1[[#This Row],[№]]","v":{"$error":"#VALUE!"}},{"$f":"Таблица1[[#This Row],[Фамилия]]","v":{"$error":"#VALUE!"}},{"$f":"Таблица1[[#This Row],[Имя]]","v":{"$error":"#VALUE!"}},{"$f":"Таблица1[[#This Row],[Отчество]]","v":{"$error":"#VALUE!"}},{"$f":"Таблица1[[#This Row],[адрес]]","v":{"$error":"#VALUE!"}},{"$f":"Таблица1[[#This Row],[дата          заказа]]","v":{"$error":"#VALUE!"}},{"$f":"Таблица1[[#This Row],[тип           помещения]]","v":{"$error":"#VALUE!"}},null,null,null,null,null,null,null,null,null,{"$f":"IF('dop_uslug (2)'!$K21=\"стирка\",price_dop!$B$4,IF('dop_uslug (2)'!$K21=\"посуда\",price_dop!$B$5,price_dop!$C$4))","v":0},{"$f":"IF('dop_uslug (2)'!$L21=\"стирка\",price_dop!$B$4,IF('dop_uslug (2)'!$L21=\"посуда\",price_dop!$B$5,price_dop!$C$4))","v":0},{"$f":"Таблица24[[#This Row],[доп.услуга1]]+Таблица24[[#This Row],[доп.услуга2]]","v":0}]
[{"$f":"Таблица1[[#This Row],[№]]","v":{"$error":"#VALUE!"}},{"$f":"Таблица1[[#This Row],[Фамилия]]","v":{"$error":"#VALUE!"}},{"$f":"Таблица1[[#This Row],[Имя]]","v":{"$error":"#VALUE!"}},{"$f":"Таблица1[[#This Row],[Отчество]]","v":{"$error":"#VALUE!"}},{"$f":"Таблица1[[#This Row],[адрес]]","v":{"$error":"#VALUE!"}},{"$f":"Таблица1[[#This Row],[дата          заказа]]","v":{"$error":"#VALUE!"}},{"$f":"Таблица1[[#This Row],[тип           помещения]]","v":{"$error":"#VALUE!"}},null,null,null,null,null,null,null,null,null,{"$f":"IF('dop_uslug (2)'!$K22=\"стирка\",price_dop!$B$4,IF('dop_uslug (2)'!$K22=\"посуда\",price_dop!$B$5,price_dop!$C$4))","v":0},{"$f":"IF('dop_uslug (2)'!$L22=\"стирка\",price_dop!$B$4,IF('dop_uslug (2)'!$L22=\"посуда\",price_dop!$B$5,price_dop!$C$4))","v":0},{"$f":"Таблица24[[#This Row],[доп.услуга1]]+Таблица24[[#This Row],[доп.услуга2]]","v":0}]
[{"$f":"Таблица1[[#This Row],[№]]","v":{"$error":"#VALUE!"}},{"$f":"Таблица1[[#This Row],[Фамилия]]","v":{"$error":"#VALUE!"}},{"$f":"Таблица1[[#This Row],[Имя]]","v":{"$error":"#VALUE!"}},{"$f":"Таблица1[[#This Row],[Отчество]]","v":{"$error":"#VALUE!"}},{"$f":"Таблица1[[#This Row],[адрес]]","v":{"$error":"#VALUE!"}},{"$f":"Таблица1[[#This Row],[дата          заказа]]","v":{"$error":"#VALUE!"}},{"$f":"Таблица1[[#This Row],[тип           помещения]]","v":{"$error":"#VALUE!"}},null,null,null,null,null,null,null,null,null,{"$f":"IF('dop_uslug (2)'!$K23=\"стирка\",price_dop!$B$4,IF('dop_uslug (2)'!$K23=\"посуда\",price_dop!$B$5,price_dop!$C$4))","v":0},{"$f":"IF('dop_uslug (2)'!$L23=\"стирка\",price_dop!$B$4,IF('dop_uslug (2)'!$L23=\"посуда\",price_dop!$B$5,price_dop!$C$4))","v":0},{"$f":"Таблица24[[#This Row],[доп.услуга1]]+Таблица24[[#This Row],[доп.услуга2]]","v":0}]
[{"$f":"Таблица1[[#This Row],[№]]","v":{"$error":"#VALUE!"}},{"$f":"Таблица1[[#This Row],[Фамилия]]","v":{"$error":"#VALUE!"}},{"$f":"Таблица1[[#This Row],[Имя]]","v":{"$error":"#VALUE!"}},{"$f":"Таблица1[[#This Row],[Отчество]]","v":{"$error":"#VALUE!"}},{"$f":"Таблица1[[#This Row],[адрес]]","v":{"$error":"#VALUE!"}},{"$f":"Таблица1[[#This Row],[дата          заказа]]","v":{"$error":"#VALUE!"}},{"$f":"Таблица1[[#This Row],[тип           помещения]]","v":{"$error":"#VALUE!"}},null,null,null,null,null,null,null,null,null,{"$f":"IF('dop_uslug (2)'!$K24=\"стирка\",price_dop!$B$4,IF('dop_uslug (2)'!$K24=\"посуда\",price_dop!$B$5,price_dop!$C$4))","v":0},{"$f":"IF('dop_uslug (2)'!$L24=\"стирка\",price_dop!$B$4,IF('dop_uslug (2)'!$L24=\"посуда\",price_dop!$B$5,price_dop!$C$4))","v":0},{"$f":"Таблица24[[#This Row],[доп.услуга1]]+Таблица24[[#This Row],[доп.услуга2]]","v":0}]
[{"$f":"Таблица1[[#This Row],[№]]","v":{"$error":"#VALUE!"}},{"$f":"Таблица1[[#This Row],[Фамилия]]","v":{"$error":"#VALUE!"}},{"$f":"Таблица1[[#This Row],[Имя]]","v":{"$error":"#VALUE!"}},{"$f":"Таблица1[[#This Row],[Отчество]]","v":{"$error":"#VALUE!"}},{"$f":"Таблица1[[#This Row],[адрес]]","v":{"$error":"#VALUE!"}},{"$f":"Таблица1[[#This Row],[дата          заказа]]","v":{"$error":"#VALUE!"}},{"$f":"Таблица1[[#This Row],[тип           помещения]]","v":{"$error":"#VALUE!"}},null,null,null,null,null,null,null,null,null,{"$f":"IF('dop_uslug (2)'!$K25=\"стирка\",price_dop!$B$4,IF('dop_uslug (2)'!$K25=\"посуда\",price_dop!$B$5,price_dop!$C$4))","v":0},{"$f":"IF('dop_uslug (2)'!$L25=\"стирка\",price_dop!$B$4,IF('dop_uslug (2)'!$L25=\"посуда\",price_dop!$B$5,price_dop!$C$4))","v":0},{"$f":"Таблица24[[#This Row],[доп.услуга1]]+Таблица24[[#This Row],[доп.услуга2]]","v":0}]
[{"$f":"Таблица1[[#This Row],[№]]","v":{"$error":"#VALUE!"}},{"$f":"Таблица1[[#This Row],[Фамилия]]","v":{"$error":"#VALUE!"}},{"$f":"Таблица1[[#This Row],[Имя]]","v":{"$error":"#VALUE!"}},{"$f":"Таблица1[[#This Row],[Отчество]]","v":{"$error":"#VALUE!"}},{"$f":"Таблица1[[#This Row],[адрес]]","v":{"$error":"#VALUE!"}},{"$f":"Таблица1[[#This Row],[дата          заказа]]","v":{"$error":"#VALUE!"}},{"$f":"Таблица1[[#This Row],[тип           помещения]]","v":{"$error":"#VALUE!"}},null,null,null,null,null,null,null,null,null,{"$f":"IF('dop_uslug (2)'!$K26=\"стирка\",price_dop!$B$4,IF('dop_uslug (2)'!$K26=\"посуда\",price_dop!$B$5,price_dop!$C$4))","v":0},{"$f":"IF('dop_uslug (2)'!$L26=\"стирка\",price_dop!$B$4,IF('dop_uslug (2)'!$L26=\"посуда\",price_dop!$B$5,price_dop!$C$4))","v":0},{"$f":"Таблица24[[#This Row],[доп.услуга1]]+Таблица24[[#This Row],[доп.услуга2]]","v":0}]
[{"$f":"Таблица1[[#This Row],[№]]","v":{"$error":"#VALUE!"}},{"$f":"Таблица1[[#This Row],[Фамилия]]","v":{"$error":"#VALUE!"}},{"$f":"Таблица1[[#This Row],[Имя]]","v":{"$error":"#VALUE!"}},{"$f":"Таблица1[[#This Row],[Отчество]]","v":{"$error":"#VALUE!"}},{"$f":"Таблица1[[#This Row],[адрес]]","v":{"$error":"#VALUE!"}},{"$f":"Таблица1[[#This Row],[дата          заказа]]","v":{"$error":"#VALUE!"}},{"$f":"Таблица1[[#This Row],[тип           помещения]]","v":{"$error":"#VALUE!"}},null,null,null,null,null,null,null,null,null,{"$f":"IF('dop_uslug (2)'!$K27=\"стирка\",price_dop!$B$4,IF('dop_uslug (2)'!$K27=\"посуда\",price_dop!$B$5,price_dop!$C$4))","v":0},{"$f":"IF('dop_uslug (2)'!$L27=\"стирка\",price_dop!$B$4,IF('dop_uslug (2)'!$L27=\"посуда\",price_dop!$B$5,price_dop!$C$4))","v":0},{"$f":"Таблица24[[#This Row],[доп.услуга1]]+Таблица24[[#This Row],[доп.услуга2]]","v":0}]
[{"$f":"Таблица1[[#This Row],[№]]","v":{"$error":"#VALUE!"}},{"$f":"Таблица1[[#This Row],[Фамилия]]","v":{"$error":"#VALUE!"}},{"$f":"Таблица1[[#This Row],[Имя]]","v":{"$error":"#VALUE!"}},{"$f":"Таблица1[[#This Row],[Отчество]]","v":{"$error":"#VALUE!"}},{"$f":"Таблица1[[#This Row],[адрес]]","v":{"$error":"#VALUE!"}},{"$f":"Таблица1[[#This Row],[дата          заказа]]","v":{"$error":"#VALUE!"}},{"$f":"Таблица1[[#This Row],[тип           помещения]]","v":{"$error":"#VALUE!"}},null,null,null,null,null,null,null,null,null,{"$f":"IF('dop_uslug (2)'!$K28=\"стирка\",price_dop!$B$4,IF('dop_uslug (2)'!$K28=\"посуда\",price_dop!$B$5,price_dop!$C$4))","v":0},{"$f":"IF('dop_uslug (2)'!$L28=\"стирка\",price_dop!$B$4,IF('dop_uslug (2)'!$L28=\"посуда\",price_dop!$B$5,price_dop!$C$4))","v":0},{"$f":"Таблица24[[#This Row],[доп.услуга1]]+Таблица24[[#This Row],[доп.услуга2]]","v":0}]
[{"$f":"Таблица1[[#This Row],[№]]","v":{"$error":"#VALUE!"}},{"$f":"Таблица1[[#This Row],[Фамилия]]","v":{"$error":"#VALUE!"}},{"$f":"Таблица1[[#This Row],[Имя]]","v":{"$error":"#VALUE!"}},{"$f":"Таблица1[[#This Row],[Отчество]]","v":{"$error":"#VALUE!"}},{"$f":"Таблица1[[#This Row],[адрес]]","v":{"$error":"#VALUE!"}},{"$f":"Таблица1[[#This Row],[дата          заказа]]","v":{"$error":"#VALUE!"}},{"$f":"Таблица1[[#This Row],[тип           помещения]]","v":{"$error":"#VALUE!"}},null,null,null,null,null,null,null,null,null,{"$f":"IF('dop_uslug (2)'!$K29=\"стирка\",price_dop!$B$4,IF('dop_uslug (2)'!$K29=\"посуда\",price_dop!$B$5,price_dop!$C$4))","v":0},{"$f":"IF('dop_uslug (2)'!$L29=\"стирка\",price_dop!$B$4,IF('dop_uslug (2)'!$L29=\"посуда\",price_dop!$B$5,price_dop!$C$4))","v":0},{"$f":"Таблица24[[#This Row],[доп.услуга1]]+Таблица24[[#This Row],[доп.услуга2]]","v":0}]
[{"$f":"Таблица1[[#This Row],[№]]","v":{"$error":"#VALUE!"}},{"$f":"Таблица1[[#This Row],[Фамилия]]","v":{"$error":"#VALUE!"}},{"$f":"Таблица1[[#This Row],[Имя]]","v":{"$error":"#VALUE!"}},{"$f":"Таблица1[[#This Row],[Отчество]]","v":{"$error":"#VALUE!"}},{"$f":"Таблица1[[#This Row],[адрес]]","v":{"$error":"#VALUE!"}},{"$f":"Таблица1[[#This Row],[дата          заказа]]","v":{"$error":"#VALUE!"}},{"$f":"Таблица1[[#This Row],[тип           помещения]]","v":{"$error":"#VALUE!"}},null,null,null,null,null,null,null,null,null,{"$f":"IF('dop_uslug (2)'!$K30=\"стирка\",price_dop!$B$4,IF('dop_uslug (2)'!$K30=\"посуда\",price_dop!$B$5,price_dop!$C$4))","v":0},{"$f":"IF('dop_uslug (2)'!$L30=\"стирка\",price_dop!$B$4,IF('dop_uslug (2)'!$L30=\"посуда\",price_dop!$B$5,price_dop!$C$4))","v":0},{"$f":"Таблица24[[#This Row],[доп.услуга1]]+Таблица24[[#This Row],[доп.услуга2]]","v":0}]
[{"$f":"Таблица1[[#This Row],[№]]","v":{"$error":"#VALUE!"}},{"$f":"Таблица1[[#This Row],[Фамилия]]","v":{"$error":"#VALUE!"}},{"$f":"Таблица1[[#This Row],[Имя]]","v":{"$error":"#VALUE!"}},{"$f":"Таблица1[[#This Row],[Отчество]]","v":{"$error":"#VALUE!"}},{"$f":"Таблица1[[#This Row],[адрес]]","v":{"$error":"#VALUE!"}},{"$f":"Таблица1[[#This Row],[дата          заказа]]","v":{"$error":"#VALUE!"}},{"$f":"Таблица1[[#This Row],[тип           помещения]]","v":{"$error":"#VALUE!"}},null,null,null,null,null,null,null,null,null,{"$f":"IF('dop_uslug (2)'!$K31=\"стирка\",price_dop!$B$4,IF('dop_uslug (2)'!$K31=\"посуда\",price_dop!$B$5,price_dop!$C$4))","v":0},{"$f":"IF('dop_uslug (2)'!$L31=\"стирка\",price_dop!$B$4,IF('dop_uslug (2)'!$L31=\"посуда\",price_dop!$B$5,price_dop!$C$4))","v":0},{"$f":"Таблица24[[#This Row],[доп.услуга1]]+Таблица24[[#This Row],[доп.услуга2]]","v":0}]
[{"$f":"Таблица1[[#This Row],[№]]","v":{"$error":"#VALUE!"}},{"$f":"Таблица1[[#This Row],[Фамилия]]","v":{"$error":"#VALUE!"}},{"$f":"Таблица1[[#This Row],[Имя]]","v":{"$error":"#VALUE!"}},{"$f":"Таблица1[[#This Row],[Отчество]]","v":{"$error":"#VALUE!"}},{"$f":"Таблица1[[#This Row],[адрес]]","v":{"$error":"#VALUE!"}},{"$f":"Таблица1[[#This Row],[дата          заказа]]","v":{"$error":"#VALUE!"}},{"$f":"Таблица1[[#This Row],[тип           помещения]]","v":{"$error":"#VALUE!"}},null,null,null,null,null,null,null,null,null,{"$f":"IF('dop_uslug (2)'!$K32=\"стирка\",price_dop!$B$4,IF('dop_uslug (2)'!$K32=\"посуда\",price_dop!$B$5,price_dop!$C$4))","v":0},{"$f":"IF('dop_uslug (2)'!$L32=\"стирка\",price_dop!$B$4,IF('dop_uslug (2)'!$L32=\"посуда\",price_dop!$B$5,price_dop!$C$4))","v":0},{"$f":"Таблица24[[#This Row],[доп.услуга1]]+Таблица24[[#This Row],[доп.услуга2]]","v":0}]
[{"$f":"Таблица1[[#This Row],[№]]","v":{"$error":"#VALUE!"}},{"$f":"Таблица1[[#This Row],[Фамилия]]","v":{"$error":"#VALUE!"}},{"$f":"Таблица1[[#This Row],[Имя]]","v":{"$error":"#VALUE!"}},{"$f":"Таблица1[[#This Row],[Отчество]]","v":{"$error":"#VALUE!"}},{"$f":"Таблица1[[#This Row],[адрес]]","v":{"$error":"#VALUE!"}},{"$f":"Таблица1[[#This Row],[дата          заказа]]","v":{"$error":"#VALUE!"}},{"$f":"Таблица1[[#This Row],[тип           помещения]]","v":{"$error":"#VALUE!"}},null,null,null,null,null,null,null,null,null,{"$f":"IF('dop_uslug (2)'!$K33=\"стирка\",price_dop!$B$4,IF('dop_uslug (2)'!$K33=\"посуда\",price_dop!$B$5,price_dop!$C$4))","v":0},{"$f":"IF('dop_uslug (2)'!$L33=\"стирка\",price_dop!$B$4,IF('dop_uslug (2)'!$L33=\"посуда\",price_dop!$B$5,price_dop!$C$4))","v":0},{"$f":"Таблица24[[#This Row],[доп.услуга1]]+Таблица24[[#This Row],[доп.услуга2]]","v":0}]
[{"$f":"Таблица1[[#This Row],[№]]","v":{"$error":"#VALUE!"}},{"$f":"Таблица1[[#This Row],[Фамилия]]","v":{"$error":"#VALUE!"}},{"$f":"Таблица1[[#This Row],[Имя]]","v":{"$error":"#VALUE!"}},{"$f":"Таблица1[[#This Row],[Отчество]]","v":{"$error":"#VALUE!"}},{"$f":"Таблица1[[#This Row],[адрес]]","v":{"$error":"#VALUE!"}},{"$f":"Таблица1[[#This Row],[дата          заказа]]","v":{"$error":"#VALUE!"}},{"$f":"Таблица1[[#This Row],[тип           помещения]]","v":{"$error":"#VALUE!"}},null,null,null,null,null,null,null,null,null,{"$f":"IF('dop_uslug (2)'!$K34=\"стирка\",price_dop!$B$4,IF('dop_uslug (2)'!$K34=\"посуда\",price_dop!$B$5,price_dop!$C$4))","v":0},{"$f":"IF('dop_uslug (2)'!$L34=\"стирка\",price_dop!$B$4,IF('dop_uslug (2)'!$L34=\"посуда\",price_dop!$B$5,price_dop!$C$4))","v":0},{"$f":"Таблица24[[#This Row],[доп.услуга1]]+Таблица24[[#This Row],[доп.услуга2]]","v":0}]
[{"$f":"Таблица1[[#This Row],[№]]","v":{"$error":"#VALUE!"}},{"$f":"Таблица1[[#This Row],[Фамилия]]","v":{"$error":"#VALUE!"}},{"$f":"Таблица1[[#This Row],[Имя]]","v":{"$error":"#VALUE!"}},{"$f":"Таблица1[[#This Row],[Отчество]]","v":{"$error":"#VALUE!"}},{"$f":"Таблица1[[#This Row],[адрес]]","v":{"$error":"#VALUE!"}},{"$f":"Таблица1[[#This Row],[дата          заказа]]","v":{"$error":"#VALUE!"}},{"$f":"Таблица1[[#This Row],[тип           помещения]]","v":{"$error":"#VALUE!"}},null,null,null,null,null,null,null,null,null,{"$f":"IF('dop_uslug (2)'!$K35=\"стирка\",price_dop!$B$4,IF('dop_uslug (2)'!$K35=\"посуда\",price_dop!$B$5,price_dop!$C$4))","v":0},{"$f":"IF('dop_uslug (2)'!$L35=\"стирка\",price_dop!$B$4,IF('dop_uslug (2)'!$L35=\"посуда\",price_dop!$B$5,price_dop!$C$4))","v":0},{"$f":"Таблица24[[#This Row],[доп.услуга1]]+Таблица24[[#This Row],[доп.услуга2]]","v":0}]
[{"$f":"Таблица1[[#This Row],[№]]","v":{"$error":"#VALUE!"}},{"$f":"Таблица1[[#This Row],[Фамилия]]","v":{"$error":"#VALUE!"}},{"$f":"Таблица1[[#This Row],[Имя]]","v":{"$error":"#VALUE!"}},{"$f":"Таблица1[[#This Row],[Отчество]]","v":{"$error":"#VALUE!"}},{"$f":"Таблица1[[#This Row],[адрес]]","v":{"$error":"#VALUE!"}},{"$f":"Таблица1[[#This Row],[дата          заказа]]","v":{"$error":"#VALUE!"}},{"$f":"Таблица1[[#This Row],[тип           помещения]]","v":{"$error":"#VALUE!"}},null,null,null,null,null,null,null,null,null,{"$f":"IF('dop_uslug (2)'!$K36=\"стирка\",price_dop!$B$4,IF('dop_uslug (2)'!$K36=\"посуда\",price_dop!$B$5,price_dop!$C$4))","v":0},{"$f":"IF('dop_uslug (2)'!$L36=\"стирка\",price_dop!$B$4,IF('dop_uslug (2)'!$L36=\"посуда\",price_dop!$B$5,price_dop!$C$4))","v":0},{"$f":"Таблица24[[#This Row],[доп.услуга1]]+Таблица24[[#This Row],[доп.услуга2]]","v":0}]
[{"$f":"Таблица1[[#This Row],[№]]","v":{"$error":"#VALUE!"}},{"$f":"Таблица1[[#This Row],[Фамилия]]","v":{"$error":"#VALUE!"}},{"$f":"Таблица1[[#This Row],[Имя]]","v":{"$error":"#VALUE!"}},{"$f":"Таблица1[[#This Row],[Отчество]]","v":{"$error":"#VALUE!"}},{"$f":"Таблица1[[#This Row],[адрес]]","v":{"$error":"#VALUE!"}},{"$f":"Таблица1[[#This Row],[дата          заказа]]","v":{"$error":"#VALUE!"}},{"$f":"Таблица1[[#This Row],[тип           помещения]]","v":{"$error":"#VALUE!"}},null,null,null,null,null,null,null,null,null,{"$f":"IF('dop_uslug (2)'!$K37=\"стирка\",price_dop!$B$4,IF('dop_uslug (2)'!$K37=\"посуда\",price_dop!$B$5,price_dop!$C$4))","v":0},{"$f":"IF('dop_uslug (2)'!$L37=\"стирка\",price_dop!$B$4,IF('dop_uslug (2)'!$L37=\"посуда\",price_dop!$B$5,price_dop!$C$4))","v":0},{"$f":"Таблица24[[#This Row],[доп.услуга1]]+Таблица24[[#This Row],[доп.услуга2]]","v":0}]
[{"$f":"Таблица1[[#This Row],[№]]","v":{"$error":"#VALUE!"}},{"$f":"Таблица1[[#This Row],[Фамилия]]","v":{"$error":"#VALUE!"}},{"$f":"Таблица1[[#This Row],[Имя]]","v":{"$error":"#VALUE!"}},{"$f":"Таблица1[[#This Row],[Отчество]]","v":{"$error":"#VALUE!"}},{"$f":"Таблица1[[#This Row],[адрес]]","v":{"$error":"#VALUE!"}},{"$f":"Таблица1[[#This Row],[дата          заказа]]","v":{"$error":"#VALUE!"}},{"$f":"Таблица1[[#This Row],[тип           помещения]]","v":{"$error":"#VALUE!"}},null,null,null,null,null,null,null,null,null,{"$f":"IF('dop_uslug (2)'!$K38=\"стирка\",price_dop!$B$4,IF('dop_uslug (2)'!$K38=\"посуда\",price_dop!$B$5,price_dop!$C$4))","v":0},{"$f":"IF('dop_uslug (2)'!$L38=\"стирка\",price_dop!$B$4,IF('dop_uslug (2)'!$L38=\"посуда\",price_dop!$B$5,price_dop!$C$4))","v":0},{"$f":"Таблица24[[#This Row],[доп.услуга1]]+Таблица24[[#This Row],[доп.услуга2]]","v":0}]
[{"$f":"Таблица1[[#This Row],[№]]","v":{"$error":"#VALUE!"}},{"$f":"Таблица1[[#This Row],[Фамилия]]","v":{"$error":"#VALUE!"}},{"$f":"Таблица1[[#This Row],[Имя]]","v":{"$error":"#VALUE!"}},{"$f":"Таблица1[[#This Row],[Отчество]]","v":{"$error":"#VALUE!"}},{"$f":"Таблица1[[#This Row],[адрес]]","v":{"$error":"#VALUE!"}},{"$f":"Таблица1[[#This Row],[дата          заказа]]","v":{"$error":"#VALUE!"}},{"$f":"Таблица1[[#This Row],[тип           помещения]]","v":{"$error":"#VALUE!"}},null,null,null,null,null,null,null,null,null,{"$f":"IF('dop_uslug (2)'!$K39=\"стирка\",price_dop!$B$4,IF('dop_uslug (2)'!$K39=\"посуда\",price_dop!$B$5,price_dop!$C$4))","v":0},{"$f":"IF('dop_uslug (2)'!$L39=\"стирка\",price_dop!$B$4,IF('dop_uslug (2)'!$L39=\"посуда\",price_dop!$B$5,price_dop!$C$4))","v":0},{"$f":"Таблица24[[#This Row],[доп.услуга1]]+Таблица24[[#This Row],[доп.услуга2]]","v":0}]
[{"$f":"Таблица1[[#This Row],[№]]","v":{"$error":"#VALUE!"}},{"$f":"Таблица1[[#This Row],[Фамилия]]","v":{"$error":"#VALUE!"}},{"$f":"Таблица1[[#This Row],[Имя]]","v":{"$error":"#VALUE!"}},{"$f":"Таблица1[[#This Row],[Отчество]]","v":{"$error":"#VALUE!"}},{"$f":"Таблица1[[#This Row],[адрес]]","v":{"$error":"#VALUE!"}},{"$f":"Таблица1[[#This Row],[дата          заказа]]","v":{"$error":"#VALUE!"}},{"$f":"Таблица1[[#This Row],[тип           помещения]]","v":{"$error":"#VALUE!"}},null,null,null,null,null,null,null,null,null,{"$f":"IF('dop_uslug (2)'!$K40=\"стирка\",price_dop!$B$4,IF('dop_uslug (2)'!$K40=\"посуда\",price_dop!$B$5,price_dop!$C$4))","v":0},{"$f":"IF('dop_uslug (2)'!$L40=\"стирка\",price_dop!$B$4,IF('dop_uslug (2)'!$L40=\"посуда\",price_dop!$B$5,price_dop!$C$4))","v":0},{"$f":"Таблица24[[#This Row],[доп.услуга1]]+Таблица24[[#This Row],[доп.услуга2]]","v":0}]
[{"$f":"Таблица1[[#This Row],[№]]","v":{"$error":"#VALUE!"}},{"$f":"Таблица1[[#This Row],[Фамилия]]","v":{"$error":"#VALUE!"}},{"$f":"Таблица1[[#This Row],[Имя]]","v":{"$error":"#VALUE!"}},{"$f":"Таблица1[[#This Row],[Отчество]]","v":{"$error":"#VALUE!"}},{"$f":"Таблица1[[#This Row],[адрес]]","v":{"$error":"#VALUE!"}},{"$f":"Таблица1[[#This Row],[дата          заказа]]","v":{"$error":"#VALUE!"}},{"$f":"Таблица1[[#This Row],[тип           помещения]]","v":{"$error":"#VALUE!"}},null,null,null,null,null,null,null,null,null,{"$f":"IF('dop_uslug (2)'!$K41=\"стирка\",price_dop!$B$4,IF('dop_uslug (2)'!$K41=\"посуда\",price_dop!$B$5,price_dop!$C$4))","v":0},{"$f":"IF('dop_uslug (2)'!$L41=\"стирка\",price_dop!$B$4,IF('dop_uslug (2)'!$L41=\"посуда\",price_dop!$B$5,price_dop!$C$4))","v":0},{"$f":"Таблица24[[#This Row],[доп.услуга1]]+Таблица24[[#This Row],[доп.услуга2]]","v":0}]
[{"$f":"Таблица1[[#This Row],[№]]","v":{"$error":"#VALUE!"}},{"$f":"Таблица1[[#This Row],[Фамилия]]","v":{"$error":"#VALUE!"}},{"$f":"Таблица1[[#This Row],[Имя]]","v":{"$error":"#VALUE!"}},{"$f":"Таблица1[[#This Row],[Отчество]]","v":{"$error":"#VALUE!"}},{"$f":"Таблица1[[#This Row],[адрес]]","v":{"$error":"#VALUE!"}},{"$f":"Таблица1[[#This Row],[дата          заказа]]","v":{"$error":"#VALUE!"}},{"$f":"Таблица1[[#This Row],[тип           помещения]]","v":{"$error":"#VALUE!"}},null,null,null,null,null,null,null,null,null,{"$f":"IF('dop_uslug (2)'!$K42=\"стирка\",price_dop!$B$4,IF('dop_uslug (2)'!$K42=\"посуда\",price_dop!$B$5,price_dop!$C$4))","v":0},{"$f":"IF('dop_uslug (2)'!$L42=\"стирка\",price_dop!$B$4,IF('dop_uslug (2)'!$L42=\"посуда\",price_dop!$B$5,price_dop!$C$4))","v":0},{"$f":"Таблица24[[#This Row],[доп.услуга1]]+Таблица24[[#This Row],[доп.услуга2]]","v":0}]
[{"$f":"Таблица1[[#This Row],[№]]","v":{"$error":"#VALUE!"}},{"$f":"Таблица1[[#This Row],[Фамилия]]","v":{"$error":"#VALUE!"}},{"$f":"Таблица1[[#This Row],[Имя]]","v":{"$error":"#VALUE!"}},{"$f":"Таблица1[[#This Row],[Отчество]]","v":{"$error":"#VALUE!"}},{"$f":"Таблица1[[#This Row],[адрес]]","v":{"$error":"#VALUE!"}},{"$f":"Таблица1[[#This Row],[дата          заказа]]","v":{"$error":"#VALUE!"}},{"$f":"Таблица1[[#This Row],[тип           помещения]]","v":{"$error":"#VALUE!"}},null,null,null,null,null,null,null,null,null,{"$f":"IF('dop_uslug (2)'!$K43=\"стирка\",price_dop!$B$4,IF('dop_uslug (2)'!$K43=\"посуда\",price_dop!$B$5,price_dop!$C$4))","v":0},{"$f":"IF('dop_uslug (2)'!$L43=\"стирка\",price_dop!$B$4,IF('dop_uslug (2)'!$L43=\"посуда\",price_dop!$B$5,price_dop!$C$4))","v":0},{"$f":"Таблица24[[#This Row],[доп.услуга1]]+Таблица24[[#This Row],[доп.услуга2]]","v":0}]
[{"$f":"Таблица1[[#This Row],[№]]","v":{"$error":"#VALUE!"}},{"$f":"Таблица1[[#This Row],[Фамилия]]","v":{"$error":"#VALUE!"}},{"$f":"Таблица1[[#This Row],[Имя]]","v":{"$error":"#VALUE!"}},{"$f":"Таблица1[[#This Row],[Отчество]]","v":{"$error":"#VALUE!"}},{"$f":"Таблица1[[#This Row],[адрес]]","v":{"$error":"#VALUE!"}},{"$f":"Таблица1[[#This Row],[дата          заказа]]","v":{"$error":"#VALUE!"}},{"$f":"Таблица1[[#This Row],[тип           помещения]]","v":{"$error":"#VALUE!"}},null,null,null,null,null,null,null,null,null,{"$f":"IF('dop_uslug (2)'!$K44=\"стирка\",price_dop!$B$4,IF('dop_uslug (2)'!$K44=\"посуда\",price_dop!$B$5,price_dop!$C$4))","v":0},{"$f":"IF('dop_uslug (2)'!$L44=\"стирка\",price_dop!$B$4,IF('dop_uslug (2)'!$L44=\"посуда\",price_dop!$B$5,price_dop!$C$4))","v":0},{"$f":"Таблица24[[#This Row],[доп.услуга1]]+Таблица24[[#This Row],[доп.услуга2]]","v":0}]
[{"$f":"Таблица1[[#This Row],[№]]","v":{"$error":"#VALUE!"}},{"$f":"Таблица1[[#This Row],[Фамилия]]","v":{"$error":"#VALUE!"}},{"$f":"Таблица1[[#This Row],[Имя]]","v":{"$error":"#VALUE!"}},{"$f":"Таблица1[[#This Row],[Отчество]]","v":{"$error":"#VALUE!"}},{"$f":"Таблица1[[#This Row],[адрес]]","v":{"$error":"#VALUE!"}},{"$f":"Таблица1[[#This Row],[дата          заказа]]","v":{"$error":"#VALUE!"}},{"$f":"Таблица1[[#This Row],[тип           помещения]]","v":{"$error":"#VALUE!"}},null,null,null,null,null,null,null,null,null,{"$f":"IF('dop_uslug (2)'!$K45=\"стирка\",price_dop!$B$4,IF('dop_uslug (2)'!$K45=\"посуда\",price_dop!$B$5,price_dop!$C$4))","v":0},{"$f":"IF('dop_uslug (2)'!$L45=\"стирка\",price_dop!$B$4,IF('dop_uslug (2)'!$L45=\"посуда\",price_dop!$B$5,price_dop!$C$4))","v":0},{"$f":"Таблица24[[#This Row],[доп.услуга1]]+Таблица24[[#This Row],[доп.услуга2]]","v":0}]
[{"$f":"Таблица1[[#This Row],[№]]","v":{"$error":"#VALUE!"}},{"$f":"Таблица1[[#This Row],[Фамилия]]","v":{"$error":"#VALUE!"}},{"$f":"Таблица1[[#This Row],[Имя]]","v":{"$error":"#VALUE!"}},{"$f":"Таблица1[[#This Row],[Отчество]]","v":{"$error":"#VALUE!"}},{"$f":"Таблица1[[#This Row],[адрес]]","v":{"$error":"#VALUE!"}},{"$f":"Таблица1[[#This Row],[дата          заказа]]","v":{"$error":"#VALUE!"}},{"$f":"Таблица1[[#This Row],[тип           помещения]]","v":{"$error":"#VALUE!"}},null,null,null,null,null,null,null,null,null,{"$f":"IF('dop_uslug (2)'!$K46=\"стирка\",price_dop!$B$4,IF('dop_uslug (2)'!$K46=\"посуда\",price_dop!$B$5,price_dop!$C$4))","v":0},{"$f":"IF('dop_uslug (2)'!$L46=\"стирка\",price_dop!$B$4,IF('dop_uslug (2)'!$L46=\"посуда\",price_dop!$B$5,price_dop!$C$4))","v":0},{"$f":"Таблица24[[#This Row],[доп.услуга1]]+Таблица24[[#This Row],[доп.услуга2]]","v":0}]
[{"$f":"Таблица1[[#This Row],[№]]","v":{"$error":"#VALUE!"}},{"$f":"Таблица1[[#This Row],[Фамилия]]","v":{"$error":"#VALUE!"}},{"$f":"Таблица1[[#This Row],[Имя]]","v":{"$error":"#VALUE!"}},{"$f":"Таблица1[[#This Row],[Отчество]]","v":{"$error":"#VALUE!"}},{"$f":"Таблица1[[#This Row],[адрес]]","v":{"$error":"#VALUE!"}},{"$f":"Таблица1[[#This Row],[дата          заказа]]","v":{"$error":"#VALUE!"}},{"$f":"Таблица1[[#This Row],[тип           помещения]]","v":{"$error":"#VALUE!"}},null,null,null,null,null,null,null,null,null,{"$f":"IF('dop_uslug (2)'!$K47=\"стирка\",price_dop!$B$4,IF('dop_uslug (2)'!$K47=\"посуда\",price_dop!$B$5,price_dop!$C$4))","v":0},{"$f":"IF('dop_uslug (2)'!$L47=\"стирка\",price_dop!$B$4,IF('dop_uslug (2)'!$L47=\"посуда\",price_dop!$B$5,price_dop!$C$4))","v":0},{"$f":"Таблица24[[#This Row],[доп.услуга1]]+Таблица24[[#This Row],[доп.услуга2]]","v":0}]
[{"$f":"Таблица1[[#This Row],[№]]","v":{"$error":"#VALUE!"}},{"$f":"Таблица1[[#This Row],[Фамилия]]","v":{"$error":"#VALUE!"}},{"$f":"Таблица1[[#This Row],[Имя]]","v":{"$error":"#VALUE!"}},{"$f":"Таблица1[[#This Row],[Отчество]]","v":{"$error":"#VALUE!"}},{"$f":"Таблица1[[#This Row],[адрес]]","v":{"$error":"#VALUE!"}},{"$f":"Таблица1[[#This Row],[дата          заказа]]","v":{"$error":"#VALUE!"}},{"$f":"Таблица1[[#This Row],[тип           помещения]]","v":{"$error":"#VALUE!"}},null,null,null,null,null,null,null,null,null,{"$f":"IF('dop_uslug (2)'!$K48=\"стирка\",price_dop!$B$4,IF('dop_uslug (2)'!$K48=\"посуда\",price_dop!$B$5,price_dop!$C$4))","v":0},{"$f":"IF('dop_uslug (2)'!$L48=\"стирка\",price_dop!$B$4,IF('dop_uslug (2)'!$L48=\"посуда\",price_dop!$B$5,price_dop!$C$4))","v":0},{"$f":"Таблица24[[#This Row],[доп.услуга1]]+Таблица24[[#This Row],[доп.услуга2]]","v":0}]
[{"$f":"Таблица1[[#This Row],[№]]","v":{"$error":"#VALUE!"}},{"$f":"Таблица1[[#This Row],[Фамилия]]","v":{"$error":"#VALUE!"}},{"$f":"Таблица1[[#This Row],[Имя]]","v":{"$error":"#VALUE!"}},{"$f":"Таблица1[[#This Row],[Отчество]]","v":{"$error":"#VALUE!"}},{"$f":"Таблица1[[#This Row],[адрес]]","v":{"$error":"#VALUE!"}},{"$f":"Таблица1[[#This Row],[дата          заказа]]","v":{"$error":"#VALUE!"}},{"$f":"Таблица1[[#This Row],[тип           помещения]]","v":{"$error":"#VALUE!"}},null,null,null,null,null,null,null,null,null,{"$f":"IF('dop_uslug (2)'!$K49=\"стирка\",price_dop!$B$4,IF('dop_uslug (2)'!$K49=\"посуда\",price_dop!$B$5,price_dop!$C$4))","v":0},{"$f":"IF('dop_uslug (2)'!$L49=\"стирка\",price_dop!$B$4,IF('dop_uslug (2)'!$L49=\"посуда\",price_dop!$B$5,price_dop!$C$4))","v":0},{"$f":"Таблица24[[#This Row],[доп.услуга1]]+Таблица24[[#This Row],[доп.услуга2]]","v":0}]
[{"$f":"Таблица1[[#This Row],[№]]","v":{"$error":"#VALUE!"}},{"$f":"Таблица1[[#This Row],[Фамилия]]","v":{"$error":"#VALUE!"}},{"$f":"Таблица1[[#This Row],[Имя]]","v":{"$error":"#VALUE!"}},{"$f":"Таблица1[[#This Row],[Отчество]]","v":{"$error":"#VALUE!"}},{"$f":"Таблица1[[#This Row],[адрес]]","v":{"$error":"#VALUE!"}},{"$f":"Таблица1[[#This Row],[дата          заказа]]","v":{"$error":"#VALUE!"}},{"$f":"Таблица1[[#This Row],[тип           помещения]]","v":{"$error":"#VALUE!"}},null,null,null,null,null,null,null,null,null,{"$f":"IF('dop_uslug (2)'!$K50=\"стирка\",price_dop!$B$4,IF('dop_uslug (2)'!$K50=\"посуда\",price_dop!$B$5,price_dop!$C$4))","v":0},{"$f":"IF('dop_uslug (2)'!$L50=\"стирка\",price_dop!$B$4,IF('dop_uslug (2)'!$L50=\"посуда\",price_dop!$B$5,price_dop!$C$4))","v":0},{"$f":"Таблица24[[#This Row],[доп.услуга1]]+Таблица24[[#This Row],[доп.услуга2]]","v":0}]
[{"$f":"Таблица1[[#This Row],[№]]","v":{"$error":"#VALUE!"}},{"$f":"Таблица1[[#This Row],[Фамилия]]","v":{"$error":"#VALUE!"}},{"$f":"Таблица1[[#This Row],[Имя]]","v":{"$error":"#VALUE!"}},{"$f":"Таблица1[[#This Row],[Отчество]]","v":{"$error":"#VALUE!"}},{"$f":"Таблица1[[#This Row],[адрес]]","v":{"$error":"#VALUE!"}},{"$f":"Таблица1[[#This Row],[дата          заказа]]","v":{"$error":"#VALUE!"}},{"$f":"Таблица1[[#This Row],[тип           помещения]]","v":{"$error":"#VALUE!"}},null,null,null,null,null,null,null,null,null,{"$f":"IF('dop_uslug (2)'!$K51=\"стирка\",price_dop!$B$4,IF('dop_uslug (2)'!$K51=\"посуда\",price_dop!$B$5,price_dop!$C$4))","v":0},{"$f":"IF('dop_uslug (2)'!$L51=\"стирка\",price_dop!$B$4,IF('dop_uslug (2)'!$L51=\"посуда\",price_dop!$B$5,price_dop!$C$4))","v":0},{"$f":"Таблица24[[#This Row],[доп.услуга1]]+Таблица24[[#This Row],[доп.услуга2]]","v":0}]
[{"$f":"Таблица1[[#This Row],[№]]","v":{"$error":"#VALUE!"}},{"$f":"Таблица1[[#This Row],[Фамилия]]","v":{"$error":"#VALUE!"}},{"$f":"Таблица1[[#This Row],[Имя]]","v":{"$error":"#VALUE!"}},{"$f":"Таблица1[[#This Row],[Отчество]]","v":{"$error":"#VALUE!"}},{"$f":"Таблица1[[#This Row],[адрес]]","v":{"$error":"#VALUE!"}},{"$f":"Таблица1[[#This Row],[дата          заказа]]","v":{"$error":"#VALUE!"}},{"$f":"Таблица1[[#This Row],[тип           помещения]]","v":{"$error":"#VALUE!"}},null,null,null,null,null,null,null,null,null,{"$f":"IF('dop_uslug (2)'!$K52=\"стирка\",price_dop!$B$4,IF('dop_uslug (2)'!$K52=\"посуда\",price_dop!$B$5,price_dop!$C$4))","v":0},{"$f":"IF('dop_uslug (2)'!$L52=\"стирка\",price_dop!$B$4,IF('dop_uslug (2)'!$L52=\"посуда\",price_dop!$B$5,price_dop!$C$4))","v":0},{"$f":"Таблица24[[#This Row],[доп.услуга1]]+Таблица24[[#This Row],[доп.услуга2]]","v":0}]
[{"$f":"Таблица1[[#This Row],[№]]","v":{"$error":"#VALUE!"}},{"$f":"Таблица1[[#This Row],[Фамилия]]","v":{"$error":"#VALUE!"}},{"$f":"Таблица1[[#This Row],[Имя]]","v":{"$error":"#VALUE!"}},{"$f":"Таблица1[[#This Row],[Отчество]]","v":{"$error":"#VALUE!"}},{"$f":"Таблица1[[#This Row],[адрес]]","v":{"$error":"#VALUE!"}},{"$f":"Таблица1[[#This Row],[дата          заказа]]","v":{"$error":"#VALUE!"}},{"$f":"Таблица1[[#This Row],[тип           помещения]]","v":{"$error":"#VALUE!"}},null,null,null,null,null,null,null,null,null,{"$f":"IF('dop_uslug (2)'!$K53=\"стирка\",price_dop!$B$4,IF('dop_uslug (2)'!$K53=\"посуда\",price_dop!$B$5,price_dop!$C$4))","v":0},{"$f":"IF('dop_uslug (2)'!$L53=\"стирка\",price_dop!$B$4,IF('dop_uslug (2)'!$L53=\"посуда\",price_dop!$B$5,price_dop!$C$4))","v":0},{"$f":"Таблица24[[#This Row],[доп.услуга1]]+Таблица24[[#This Row],[доп.услуга2]]","v":0}]
[{"$f":"Таблица1[[#This Row],[№]]","v":{"$error":"#VALUE!"}},{"$f":"Таблица1[[#This Row],[Фамилия]]","v":{"$error":"#VALUE!"}},{"$f":"Таблица1[[#This Row],[Имя]]","v":{"$error":"#VALUE!"}},{"$f":"Таблица1[[#This Row],[Отчество]]","v":{"$error":"#VALUE!"}},{"$f":"Таблица1[[#This Row],[адрес]]","v":{"$error":"#VALUE!"}},{"$f":"Таблица1[[#This Row],[дата          заказа]]","v":{"$error":"#VALUE!"}},{"$f":"Таблица1[[#This Row],[тип           помещения]]","v":{"$error":"#VALUE!"}},null,null,null,null,null,null,null,null,null,{"$f":"IF('dop_uslug (2)'!$K54=\"стирка\",price_dop!$B$4,IF('dop_uslug (2)'!$K54=\"посуда\",price_dop!$B$5,price_dop!$C$4))","v":0},{"$f":"IF('dop_uslug (2)'!$L54=\"стирка\",price_dop!$B$4,IF('dop_uslug (2)'!$L54=\"посуда\",price_dop!$B$5,price_dop!$C$4))","v":0},{"$f":"Таблица24[[#This Row],[доп.услуга1]]+Таблица24[[#This Row],[доп.услуга2]]","v":0}]
[{"$f":"Таблица1[[#This Row],[№]]","v":{"$error":"#VALUE!"}},{"$f":"Таблица1[[#This Row],[Фамилия]]","v":{"$error":"#VALUE!"}},{"$f":"Таблица1[[#This Row],[Имя]]","v":{"$error":"#VALUE!"}},{"$f":"Таблица1[[#This Row],[Отчество]]","v":{"$error":"#VALUE!"}},{"$f":"Таблица1[[#This Row],[адрес]]","v":{"$error":"#VALUE!"}},{"$f":"Таблица1[[#This Row],[дата          заказа]]","v":{"$error":"#VALUE!"}},{"$f":"Таблица1[[#This Row],[тип           помещения]]","v":{"$error":"#VALUE!"}},null,null,null,null,null,null,null,null,null,{"$f":"IF('dop_uslug (2)'!$K55=\"стирка\",price_dop!$B$4,IF('dop_uslug (2)'!$K55=\"посуда\",price_dop!$B$5,price_dop!$C$4))","v":0},{"$f":"IF('dop_uslug (2)'!$L55=\"стирка\",price_dop!$B$4,IF('dop_uslug (2)'!$L55=\"посуда\",price_dop!$B$5,price_dop!$C$4))","v":0},{"$f":"Таблица24[[#This Row],[доп.услуга1]]+Таблица24[[#This Row],[доп.услуга2]]","v":0}]
[{"$f":"Таблица1[[#This Row],[№]]","v":{"$error":"#VALUE!"}},{"$f":"Таблица1[[#This Row],[Фамилия]]","v":{"$error":"#VALUE!"}},{"$f":"Таблица1[[#This Row],[Имя]]","v":{"$error":"#VALUE!"}},{"$f":"Таблица1[[#This Row],[Отчество]]","v":{"$error":"#VALUE!"}},{"$f":"Таблица1[[#This Row],[адрес]]","v":{"$error":"#VALUE!"}},{"$f":"Таблица1[[#This Row],[дата          заказа]]","v":{"$error":"#VALUE!"}},{"$f":"Таблица1[[#This Row],[тип           помещения]]","v":{"$error":"#VALUE!"}},null,null,null,null,null,null,null,null,null,{"$f":"IF('dop_uslug (2)'!$K56=\"стирка\",price_dop!$B$4,IF('dop_uslug (2)'!$K56=\"посуда\",price_dop!$B$5,price_dop!$C$4))","v":0},{"$f":"IF('dop_uslug (2)'!$L56=\"стирка\",price_dop!$B$4,IF('dop_uslug (2)'!$L56=\"посуда\",price_dop!$B$5,price_dop!$C$4))","v":0},{"$f":"Таблица24[[#This Row],[доп.услуга1]]+Таблица24[[#This Row],[доп.услуга2]]","v":0}]
[{"$f":"Таблица1[[#This Row],[№]]","v":{"$error":"#VALUE!"}},{"$f":"Таблица1[[#This Row],[Фамилия]]","v":{"$error":"#VALUE!"}},{"$f":"Таблица1[[#This Row],[Имя]]","v":{"$error":"#VALUE!"}},{"$f":"Таблица1[[#This Row],[Отчество]]","v":{"$error":"#VALUE!"}},{"$f":"Таблица1[[#This Row],[адрес]]","v":{"$error":"#VALUE!"}},{"$f":"Таблица1[[#This Row],[дата          заказа]]","v":{"$error":"#VALUE!"}},{"$f":"Таблица1[[#This Row],[тип           помещения]]","v":{"$error":"#VALUE!"}},null,null,null,null,null,null,null,null,null,{"$f":"IF('dop_uslug (2)'!$K57=\"стирка\",price_dop!$B$4,IF('dop_uslug (2)'!$K57=\"посуда\",price_dop!$B$5,price_dop!$C$4))","v":0},{"$f":"IF('dop_uslug (2)'!$L57=\"стирка\",price_dop!$B$4,IF('dop_uslug (2)'!$L57=\"посуда\",price_dop!$B$5,price_dop!$C$4))","v":0},{"$f":"Таблица24[[#This Row],[доп.услуга1]]+Таблица24[[#This Row],[доп.услуга2]]","v":0}]
[{"$f":"Таблица1[[#This Row],[№]]","v":{"$error":"#VALUE!"}},{"$f":"Таблица1[[#This Row],[Фамилия]]","v":{"$error":"#VALUE!"}},{"$f":"Таблица1[[#This Row],[Имя]]","v":{"$error":"#VALUE!"}},{"$f":"Таблица1[[#This Row],[Отчество]]","v":{"$error":"#VALUE!"}},{"$f":"Таблица1[[#This Row],[адрес]]","v":{"$error":"#VALUE!"}},{"$f":"Таблица1[[#This Row],[дата          заказа]]","v":{"$error":"#VALUE!"}},{"$f":"Таблица1[[#This Row],[тип           помещения]]","v":{"$error":"#VALUE!"}},null,null,null,null,null,null,null,null,null,{"$f":"IF('dop_uslug (2)'!$K58=\"стирка\",price_dop!$B$4,IF('dop_uslug (2)'!$K58=\"посуда\",price_dop!$B$5,price_dop!$C$4))","v":0},{"$f":"IF('dop_uslug (2)'!$L58=\"стирка\",price_dop!$B$4,IF('dop_uslug (2)'!$L58=\"посуда\",price_dop!$B$5,price_dop!$C$4))","v":0},{"$f":"Таблица24[[#This Row],[доп.услуга1]]+Таблица24[[#This Row],[доп.услуга2]]","v":0}]
[{"$f":"Таблица1[[#This Row],[№]]","v":{"$error":"#VALUE!"}},{"$f":"Таблица1[[#This Row],[Фамилия]]","v":{"$error":"#VALUE!"}},{"$f":"Таблица1[[#This Row],[Имя]]","v":{"$error":"#VALUE!"}},{"$f":"Таблица1[[#This Row],[Отчество]]","v":{"$error":"#VALUE!"}},{"$f":"Таблица1[[#This Row],[адрес]]","v":{"$error":"#VALUE!"}},{"$f":"Таблица1[[#This Row],[дата          заказа]]","v":{"$error":"#VALUE!"}},{"$f":"Таблица1[[#This Row],[тип           помещения]]","v":{"$error":"#VALUE!"}},null,null,null,null,null,null,null,null,null,{"$f":"IF('dop_uslug (2)'!$K59=\"стирка\",price_dop!$B$4,IF('dop_uslug (2)'!$K59=\"посуда\",price_dop!$B$5,price_dop!$C$4))","v":0},{"$f":"IF('dop_uslug (2)'!$L59=\"стирка\",price_dop!$B$4,IF('dop_uslug (2)'!$L59=\"посуда\",price_dop!$B$5,price_dop!$C$4))","v":0},{"$f":"Таблица24[[#This Row],[доп.услуга1]]+Таблица24[[#This Row],[доп.услуга2]]","v":0}]
[{"$f":"Таблица1[[#This Row],[№]]","v":{"$error":"#VALUE!"}},{"$f":"Таблица1[[#This Row],[Фамилия]]","v":{"$error":"#VALUE!"}},{"$f":"Таблица1[[#This Row],[Имя]]","v":{"$error":"#VALUE!"}},{"$f":"Таблица1[[#This Row],[Отчество]]","v":{"$error":"#VALUE!"}},{"$f":"Таблица1[[#This Row],[адрес]]","v":{"$error":"#VALUE!"}},{"$f":"Таблица1[[#This Row],[дата          заказа]]","v":{"$error":"#VALUE!"}},{"$f":"Таблица1[[#This Row],[тип           помещения]]","v":{"$error":"#VALUE!"}},null,null,null,null,null,null,null,null,null,{"$f":"IF('dop_uslug (2)'!$K60=\"стирка\",price_dop!$B$4,IF('dop_uslug (2)'!$K60=\"посуда\",price_dop!$B$5,price_dop!$C$4))","v":0},{"$f":"IF('dop_uslug (2)'!$L60=\"стирка\",price_dop!$B$4,IF('dop_uslug (2)'!$L60=\"посуда\",price_dop!$B$5,price_dop!$C$4))","v":0},{"$f":"Таблица24[[#This Row],[доп.услуга1]]+Таблица24[[#This Row],[доп.услуга2]]","v":0}]
[{"$f":"Таблица1[[#This Row],[№]]","v":{"$error":"#VALUE!"}},{"$f":"Таблица1[[#This Row],[Фамилия]]","v":{"$error":"#VALUE!"}},{"$f":"Таблица1[[#This Row],[Имя]]","v":{"$error":"#VALUE!"}},{"$f":"Таблица1[[#This Row],[Отчество]]","v":{"$error":"#VALUE!"}},{"$f":"Таблица1[[#This Row],[адрес]]","v":{"$error":"#VALUE!"}},{"$f":"Таблица1[[#This Row],[дата          заказа]]","v":{"$error":"#VALUE!"}},{"$f":"Таблица1[[#This Row],[тип           помещения]]","v":{"$error":"#VALUE!"}},null,null,null,null,null,null,null,null,null,{"$f":"IF('dop_uslug (2)'!$K61=\"стирка\",price_dop!$B$4,IF('dop_uslug (2)'!$K61=\"посуда\",price_dop!$B$5,price_dop!$C$4))","v":0},{"$f":"IF('dop_uslug (2)'!$L61=\"стирка\",price_dop!$B$4,IF('dop_uslug (2)'!$L61=\"посуда\",price_dop!$B$5,price_dop!$C$4))","v":0},{"$f":"Таблица24[[#This Row],[доп.услуга1]]+Таблица24[[#This Row],[доп.услуга2]]","v":0}]
[{"$f":"Таблица1[[#This Row],[№]]","v":{"$error":"#VALUE!"}},{"$f":"Таблица1[[#This Row],[Фамилия]]","v":{"$error":"#VALUE!"}},{"$f":"Таблица1[[#This Row],[Имя]]","v":{"$error":"#VALUE!"}},{"$f":"Таблица1[[#This Row],[Отчество]]","v":{"$error":"#VALUE!"}},{"$f":"Таблица1[[#This Row],[адрес]]","v":{"$error":"#VALUE!"}},{"$f":"Таблица1[[#This Row],[дата          заказа]]","v":{"$error":"#VALUE!"}},{"$f":"Таблица1[[#This Row],[тип           помещения]]","v":{"$error":"#VALUE!"}},null,null,null,null,null,null,null,null,null,{"$f":"IF('dop_uslug (2)'!$K62=\"стирка\",price_dop!$B$4,IF('dop_uslug (2)'!$K62=\"посуда\",price_dop!$B$5,price_dop!$C$4))","v":0},{"$f":"IF('dop_uslug (2)'!$L62=\"стирка\",price_dop!$B$4,IF('dop_uslug (2)'!$L62=\"посуда\",price_dop!$B$5,price_dop!$C$4))","v":0},{"$f":"Таблица24[[#This Row],[доп.услуга1]]+Таблица24[[#This Row],[доп.услуга2]]","v":0}]
[{"$f":"Таблица1[[#This Row],[№]]","v":{"$error":"#VALUE!"}},{"$f":"Таблица1[[#This Row],[Фамилия]]","v":{"$error":"#VALUE!"}},{"$f":"Таблица1[[#This Row],[Имя]]","v":{"$error":"#VALUE!"}},{"$f":"Таблица1[[#This Row],[Отчество]]","v":{"$error":"#VALUE!"}},{"$f":"Таблица1[[#This Row],[адрес]]","v":{"$error":"#VALUE!"}},{"$f":"Таблица1[[#This Row],[дата          заказа]]","v":{"$error":"#VALUE!"}},{"$f":"Таблица1[[#This Row],[тип           помещения]]","v":{"$error":"#VALUE!"}},null,null,null,null,null,null,null,null,null,{"$f":"IF('dop_uslug (2)'!$K63=\"стирка\",price_dop!$B$4,IF('dop_uslug (2)'!$K63=\"посуда\",price_dop!$B$5,price_dop!$C$4))","v":0},{"$f":"IF('dop_uslug (2)'!$L63=\"стирка\",price_dop!$B$4,IF('dop_uslug (2)'!$L63=\"посуда\",price_dop!$B$5,price_dop!$C$4))","v":0},{"$f":"Таблица24[[#This Row],[доп.услуга1]]+Таблица24[[#This Row],[доп.услуга2]]","v":0}]
[{"$f":"Таблица1[[#This Row],[№]]","v":{"$error":"#VALUE!"}},{"$f":"Таблица1[[#This Row],[Фамилия]]","v":{"$error":"#VALUE!"}},{"$f":"Таблица1[[#This Row],[Имя]]","v":{"$error":"#VALUE!"}},{"$f":"Таблица1[[#This Row],[Отчество]]","v":{"$error":"#VALUE!"}},{"$f":"Таблица1[[#This Row],[адрес]]","v":{"$error":"#VALUE!"}},{"$f":"Таблица1[[#This Row],[дата          заказа]]","v":{"$error":"#VALUE!"}},{"$f":"Таблица1[[#This Row],[тип           помещения]]","v":{"$error":"#VALUE!"}},null,null,null,null,null,null,null,null,null,{"$f":"IF('dop_uslug (2)'!$K64=\"стирка\",price_dop!$B$4,IF('dop_uslug (2)'!$K64=\"посуда\",price_dop!$B$5,price_dop!$C$4))","v":0},{"$f":"IF('dop_uslug (2)'!$L64=\"стирка\",price_dop!$B$4,IF('dop_uslug (2)'!$L64=\"посуда\",price_dop!$B$5,price_dop!$C$4))","v":0},{"$f":"Таблица24[[#This Row],[доп.услуга1]]+Таблица24[[#This Row],[доп.услуга2]]","v":0}]
[{"$f":"Таблица1[[#This Row],[№]]","v":{"$error":"#VALUE!"}},{"$f":"Таблица1[[#This Row],[Фамилия]]","v":{"$error":"#VALUE!"}},{"$f":"Таблица1[[#This Row],[Имя]]","v":{"$error":"#VALUE!"}},{"$f":"Таблица1[[#This Row],[Отчество]]","v":{"$error":"#VALUE!"}},{"$f":"Таблица1[[#This Row],[адрес]]","v":{"$error":"#VALUE!"}},{"$f":"Таблица1[[#This Row],[дата          заказа]]","v":{"$error":"#VALUE!"}},{"$f":"Таблица1[[#This Row],[тип           помещения]]","v":{"$error":"#VALUE!"}},null,null,null,null,null,null,null,null,null,{"$f":"IF('dop_uslug (2)'!$K65=\"стирка\",price_dop!$B$4,IF('dop_uslug (2)'!$K65=\"посуда\",price_dop!$B$5,price_dop!$C$4))","v":0},{"$f":"IF('dop_uslug (2)'!$L65=\"стирка\",price_dop!$B$4,IF('dop_uslug (2)'!$L65=\"посуда\",price_dop!$B$5,price_dop!$C$4))","v":0},{"$f":"Таблица24[[#This Row],[доп.услуга1]]+Таблица24[[#This Row],[доп.услуга2]]","v":0}]
[{"$f":"Таблица1[[#This Row],[№]]","v":{"$error":"#VALUE!"}},{"$f":"Таблица1[[#This Row],[Фамилия]]","v":{"$error":"#VALUE!"}},{"$f":"Таблица1[[#This Row],[Имя]]","v":{"$error":"#VALUE!"}},{"$f":"Таблица1[[#This Row],[Отчество]]","v":{"$error":"#VALUE!"}},{"$f":"Таблица1[[#This Row],[адрес]]","v":{"$error":"#VALUE!"}},{"$f":"Таблица1[[#This Row],[дата          заказа]]","v":{"$error":"#VALUE!"}},{"$f":"Таблица1[[#This Row],[тип           помещения]]","v":{"$error":"#VALUE!"}},null,null,null,null,null,null,null,null,null,{"$f":"IF('dop_uslug (2)'!$K66=\"стирка\",price_dop!$B$4,IF('dop_uslug (2)'!$K66=\"посуда\",price_dop!$B$5,price_dop!$C$4))","v":0},{"$f":"IF('dop_uslug (2)'!$L66=\"стирка\",price_dop!$B$4,IF('dop_uslug (2)'!$L66=\"посуда\",price_dop!$B$5,price_dop!$C$4))","v":0},{"$f":"Таблица24[[#This Row],[доп.услуга1]]+Таблица24[[#This Row],[доп.услуга2]]","v":0}]
[{"$f":"Таблица1[[#This Row],[№]]","v":{"$error":"#VALUE!"}},{"$f":"Таблица1[[#This Row],[Фамилия]]","v":{"$error":"#VALUE!"}},{"$f":"Таблица1[[#This Row],[Имя]]","v":{"$error":"#VALUE!"}},{"$f":"Таблица1[[#This Row],[Отчество]]","v":{"$error":"#VALUE!"}},{"$f":"Таблица1[[#This Row],[адрес]]","v":{"$error":"#VALUE!"}},{"$f":"Таблица1[[#This Row],[дата          заказа]]","v":{"$error":"#VALUE!"}},{"$f":"Таблица1[[#This Row],[тип           помещения]]","v":{"$error":"#VALUE!"}},null,null,null,null,null,null,null,null,null,{"$f":"IF('dop_uslug (2)'!$K67=\"стирка\",price_dop!$B$4,IF('dop_uslug (2)'!$K67=\"посуда\",price_dop!$B$5,price_dop!$C$4))","v":0},{"$f":"IF('dop_uslug (2)'!$L67=\"стирка\",price_dop!$B$4,IF('dop_uslug (2)'!$L67=\"посуда\",price_dop!$B$5,price_dop!$C$4))","v":0},{"$f":"Таблица24[[#This Row],[доп.услуга1]]+Таблица24[[#This Row],[доп.услуга2]]","v":0}]
[{"$f":"Таблица1[[#This Row],[№]]","v":{"$error":"#VALUE!"}},{"$f":"Таблица1[[#This Row],[Фамилия]]","v":{"$error":"#VALUE!"}},{"$f":"Таблица1[[#This Row],[Имя]]","v":{"$error":"#VALUE!"}},{"$f":"Таблица1[[#This Row],[Отчество]]","v":{"$error":"#VALUE!"}},{"$f":"Таблица1[[#This Row],[адрес]]","v":{"$error":"#VALUE!"}},{"$f":"Таблица1[[#This Row],[дата          заказа]]","v":{"$error":"#VALUE!"}},{"$f":"Таблица1[[#This Row],[тип           помещения]]","v":{"$error":"#VALUE!"}},null,null,null,null,null,null,null,null,null,{"$f":"IF('dop_uslug (2)'!$K68=\"стирка\",price_dop!$B$4,IF('dop_uslug (2)'!$K68=\"посуда\",price_dop!$B$5,price_dop!$C$4))","v":0},{"$f":"IF('dop_uslug (2)'!$L68=\"стирка\",price_dop!$B$4,IF('dop_uslug (2)'!$L68=\"посуда\",price_dop!$B$5,price_dop!$C$4))","v":0},{"$f":"Таблица24[[#This Row],[доп.услуга1]]+Таблица24[[#This Row],[доп.услуга2]]","v":0}]
[{"$f":"Таблица1[[#This Row],[№]]","v":{"$error":"#VALUE!"}},{"$f":"Таблица1[[#This Row],[Фамилия]]","v":{"$error":"#VALUE!"}},{"$f":"Таблица1[[#This Row],[Имя]]","v":{"$error":"#VALUE!"}},{"$f":"Таблица1[[#This Row],[Отчество]]","v":{"$error":"#VALUE!"}},{"$f":"Таблица1[[#This Row],[адрес]]","v":{"$error":"#VALUE!"}},{"$f":"Таблица1[[#This Row],[дата          заказа]]","v":{"$error":"#VALUE!"}},{"$f":"Таблица1[[#This Row],[тип           помещения]]","v":{"$error":"#VALUE!"}},null,null,null,null,null,null,null,null,null,{"$f":"IF('dop_uslug (2)'!$K69=\"стирка\",price_dop!$B$4,IF('dop_uslug (2)'!$K69=\"посуда\",price_dop!$B$5,price_dop!$C$4))","v":0},{"$f":"IF('dop_uslug (2)'!$L69=\"стирка\",price_dop!$B$4,IF('dop_uslug (2)'!$L69=\"посуда\",price_dop!$B$5,price_dop!$C$4))","v":0},{"$f":"Таблица24[[#This Row],[доп.услуга1]]+Таблица24[[#This Row],[доп.услуга2]]","v":0}]
[{"$f":"Таблица1[[#This Row],[№]]","v":{"$error":"#VALUE!"}},{"$f":"Таблица1[[#This Row],[Фамилия]]","v":{"$error":"#VALUE!"}},{"$f":"Таблица1[[#This Row],[Имя]]","v":{"$error":"#VALUE!"}},{"$f":"Таблица1[[#This Row],[Отчество]]","v":{"$error":"#VALUE!"}},{"$f":"Таблица1[[#This Row],[адрес]]","v":{"$error":"#VALUE!"}},{"$f":"Таблица1[[#This Row],[дата          заказа]]","v":{"$error":"#VALUE!"}},{"$f":"Таблица1[[#This Row],[тип           помещения]]","v":{"$error":"#VALUE!"}},null,null,null,null,null,null,null,null,null,{"$f":"IF('dop_uslug (2)'!$K70=\"стирка\",price_dop!$B$4,IF('dop_uslug (2)'!$K70=\"посуда\",price_dop!$B$5,price_dop!$C$4))","v":0},{"$f":"IF('dop_uslug (2)'!$L70=\"стирка\",price_dop!$B$4,IF('dop_uslug (2)'!$L70=\"посуда\",price_dop!$B$5,price_dop!$C$4))","v":0},{"$f":"Таблица24[[#This Row],[доп.услуга1]]+Таблица24[[#This Row],[доп.услуга2]]","v":0}]
[{"$f":"Таблица1[[#This Row],[№]]","v":{"$error":"#VALUE!"}},{"$f":"Таблица1[[#This Row],[Фамилия]]","v":{"$error":"#VALUE!"}},{"$f":"Таблица1[[#This Row],[Имя]]","v":{"$error":"#VALUE!"}},{"$f":"Таблица1[[#This Row],[Отчество]]","v":{"$error":"#VALUE!"}},{"$f":"Таблица1[[#This Row],[адрес]]","v":{"$error":"#VALUE!"}},{"$f":"Таблица1[[#This Row],[дата          заказа]]","v":{"$error":"#VALUE!"}},{"$f":"Таблица1[[#This Row],[тип           помещения]]","v":{"$error":"#VALUE!"}},null,null,null,null,null,null,null,null,null,{"$f":"IF('dop_uslug (2)'!$K71=\"стирка\",price_dop!$B$4,IF('dop_uslug (2)'!$K71=\"посуда\",price_dop!$B$5,price_dop!$C$4))","v":0},{"$f":"IF('dop_uslug (2)'!$L71=\"стирка\",price_dop!$B$4,IF('dop_uslug (2)'!$L71=\"посуда\",price_dop!$B$5,price_dop!$C$4))","v":0},{"$f":"Таблица24[[#This Row],[доп.услуга1]]+Таблица24[[#This Row],[доп.услуга2]]","v":0}]
[{"$f":"Таблица1[[#This Row],[№]]","v":{"$error":"#VALUE!"}},{"$f":"Таблица1[[#This Row],[Фамилия]]","v":{"$error":"#VALUE!"}},{"$f":"Таблица1[[#This Row],[Имя]]","v":{"$error":"#VALUE!"}},{"$f":"Таблица1[[#This Row],[Отчество]]","v":{"$error":"#VALUE!"}},{"$f":"Таблица1[[#This Row],[адрес]]","v":{"$error":"#VALUE!"}},{"$f":"Таблица1[[#This Row],[дата          заказа]]","v":{"$error":"#VALUE!"}},{"$f":"Таблица1[[#This Row],[тип           помещения]]","v":{"$error":"#VALUE!"}},null,null,null,null,null,null,null,null,null,{"$f":"IF('dop_uslug (2)'!$K72=\"стирка\",price_dop!$B$4,IF('dop_uslug (2)'!$K72=\"посуда\",price_dop!$B$5,price_dop!$C$4))","v":0},{"$f":"IF('dop_uslug (2)'!$L72=\"стирка\",price_dop!$B$4,IF('dop_uslug (2)'!$L72=\"посуда\",price_dop!$B$5,price_dop!$C$4))","v":0},{"$f":"Таблица24[[#This Row],[доп.услуга1]]+Таблица24[[#This Row],[доп.услуга2]]","v":0}]
[{"$f":"Таблица1[[#This Row],[№]]","v":{"$error":"#VALUE!"}},{"$f":"Таблица1[[#This Row],[Фамилия]]","v":{"$error":"#VALUE!"}},{"$f":"Таблица1[[#This Row],[Имя]]","v":{"$error":"#VALUE!"}},{"$f":"Таблица1[[#This Row],[Отчество]]","v":{"$error":"#VALUE!"}},{"$f":"Таблица1[[#This Row],[адрес]]","v":{"$error":"#VALUE!"}},{"$f":"Таблица1[[#This Row],[дата          заказа]]","v":{"$error":"#VALUE!"}},{"$f":"Таблица1[[#This Row],[тип           помещения]]","v":{"$error":"#VALUE!"}},null,null,null,null,null,null,null,null,null,{"$f":"IF('dop_uslug (2)'!$K73=\"стирка\",price_dop!$B$4,IF('dop_uslug (2)'!$K73=\"посуда\",price_dop!$B$5,price_dop!$C$4))","v":0},{"$f":"IF('dop_uslug (2)'!$L73=\"стирка\",price_dop!$B$4,IF('dop_uslug (2)'!$L73=\"посуда\",price_dop!$B$5,price_dop!$C$4))","v":0},{"$f":"Таблица24[[#This Row],[доп.услуга1]]+Таблица24[[#This Row],[доп.услуга2]]","v":0}]
[{"$f":"Таблица1[[#This Row],[№]]","v":{"$error":"#VALUE!"}},{"$f":"Таблица1[[#This Row],[Фамилия]]","v":{"$error":"#VALUE!"}},{"$f":"Таблица1[[#This Row],[Имя]]","v":{"$error":"#VALUE!"}},{"$f":"Таблица1[[#This Row],[Отчество]]","v":{"$error":"#VALUE!"}},{"$f":"Таблица1[[#This Row],[адрес]]","v":{"$error":"#VALUE!"}},{"$f":"Таблица1[[#This Row],[дата          заказа]]","v":{"$error":"#VALUE!"}},{"$f":"Таблица1[[#This Row],[тип           помещения]]","v":{"$error":"#VALUE!"}},null,null,null,null,null,null,null,null,null,{"$f":"IF('dop_uslug (2)'!$K74=\"стирка\",price_dop!$B$4,IF('dop_uslug (2)'!$K74=\"посуда\",price_dop!$B$5,price_dop!$C$4))","v":0},{"$f":"IF('dop_uslug (2)'!$L74=\"стирка\",price_dop!$B$4,IF('dop_uslug (2)'!$L74=\"посуда\",price_dop!$B$5,price_dop!$C$4))","v":0},{"$f":"Таблица24[[#This Row],[доп.услуга1]]+Таблица24[[#This Row],[доп.услуга2]]","v":0}]
[{"$f":"Таблица1[[#This Row],[№]]","v":{"$error":"#VALUE!"}},{"$f":"Таблица1[[#This Row],[Фамилия]]","v":{"$error":"#VALUE!"}},{"$f":"Таблица1[[#This Row],[Имя]]","v":{"$error":"#VALUE!"}},{"$f":"Таблица1[[#This Row],[Отчество]]","v":{"$error":"#VALUE!"}},{"$f":"Таблица1[[#This Row],[адрес]]","v":{"$error":"#VALUE!"}},{"$f":"Таблица1[[#This Row],[дата          заказа]]","v":{"$error":"#VALUE!"}},{"$f":"Таблица1[[#This Row],[тип           помещения]]","v":{"$error":"#VALUE!"}},null,null,null,null,null,null,null,null,null,{"$f":"IF('dop_uslug (2)'!$K75=\"стирка\",price_dop!$B$4,IF('dop_uslug (2)'!$K75=\"посуда\",price_dop!$B$5,price_dop!$C$4))","v":0},{"$f":"IF('dop_uslug (2)'!$L75=\"стирка\",price_dop!$B$4,IF('dop_uslug (2)'!$L75=\"посуда\",price_dop!$B$5,price_dop!$C$4))","v":0},{"$f":"Таблица24[[#This Row],[доп.услуга1]]+Таблица24[[#This Row],[доп.услуга2]]","v":0}]
[{"$f":"Таблица1[[#This Row],[№]]","v":{"$error":"#VALUE!"}},{"$f":"Таблица1[[#This Row],[Фамилия]]","v":{"$error":"#VALUE!"}},{"$f":"Таблица1[[#This Row],[Имя]]","v":{"$error":"#VALUE!"}},{"$f":"Таблица1[[#This Row],[Отчество]]","v":{"$error":"#VALUE!"}},{"$f":"Таблица1[[#This Row],[адрес]]","v":{"$error":"#VALUE!"}},{"$f":"Таблица1[[#This Row],[дата          заказа]]","v":{"$error":"#VALUE!"}},{"$f":"Таблица1[[#This Row],[тип           помещения]]","v":{"$error":"#VALUE!"}},null,null,null,null,null,null,null,null,null,{"$f":"IF('dop_uslug (2)'!$K76=\"стирка\",price_dop!$B$4,IF('dop_uslug (2)'!$K76=\"посуда\",price_dop!$B$5,price_dop!$C$4))","v":0},{"$f":"IF('dop_uslug (2)'!$L76=\"стирка\",price_dop!$B$4,IF('dop_uslug (2)'!$L76=\"посуда\",price_dop!$B$5,price_dop!$C$4))","v":0},{"$f":"Таблица24[[#This Row],[доп.услуга1]]+Таблица24[[#This Row],[доп.услуга2]]","v":0}]
[{"$f":"Таблица1[[#This Row],[№]]","v":{"$error":"#VALUE!"}},{"$f":"Таблица1[[#This Row],[Фамилия]]","v":{"$error":"#VALUE!"}},{"$f":"Таблица1[[#This Row],[Имя]]","v":{"$error":"#VALUE!"}},{"$f":"Таблица1[[#This Row],[Отчество]]","v":{"$error":"#VALUE!"}},{"$f":"Таблица1[[#This Row],[адрес]]","v":{"$error":"#VALUE!"}},{"$f":"Таблица1[[#This Row],[дата          заказа]]","v":{"$error":"#VALUE!"}},{"$f":"Таблица1[[#This Row],[тип           помещения]]","v":{"$error":"#VALUE!"}},null,null,null,null,null,null,null,null,null,{"$f":"IF('dop_uslug (2)'!$K77=\"стирка\",price_dop!$B$4,IF('dop_uslug (2)'!$K77=\"посуда\",price_dop!$B$5,price_dop!$C$4))","v":0},{"$f":"IF('dop_uslug (2)'!$L77=\"стирка\",price_dop!$B$4,IF('dop_uslug (2)'!$L77=\"посуда\",price_dop!$B$5,price_dop!$C$4))","v":0},{"$f":"Таблица24[[#This Row],[доп.услуга1]]+Таблица24[[#This Row],[доп.услуга2]]","v":0}]
[{"$f":"Таблица1[[#This Row],[№]]","v":{"$error":"#VALUE!"}},{"$f":"Таблица1[[#This Row],[Фамилия]]","v":{"$error":"#VALUE!"}},{"$f":"Таблица1[[#This Row],[Имя]]","v":{"$error":"#VALUE!"}},{"$f":"Таблица1[[#This Row],[Отчество]]","v":{"$error":"#VALUE!"}},{"$f":"Таблица1[[#This Row],[адрес]]","v":{"$error":"#VALUE!"}},{"$f":"Таблица1[[#This Row],[дата          заказа]]","v":{"$error":"#VALUE!"}},{"$f":"Таблица1[[#This Row],[тип           помещения]]","v":{"$error":"#VALUE!"}},null,null,null,null,null,null,null,null,null,{"$f":"IF('dop_uslug (2)'!$K78=\"стирка\",price_dop!$B$4,IF('dop_uslug (2)'!$K78=\"посуда\",price_dop!$B$5,price_dop!$C$4))","v":0},{"$f":"IF('dop_uslug (2)'!$L78=\"стирка\",price_dop!$B$4,IF('dop_uslug (2)'!$L78=\"посуда\",price_dop!$B$5,price_dop!$C$4))","v":0},{"$f":"Таблица24[[#This Row],[доп.услуга1]]+Таблица24[[#This Row],[доп.услуга2]]","v":0}]
[{"$f":"Таблица1[[#This Row],[№]]","v":{"$error":"#VALUE!"}},{"$f":"Таблица1[[#This Row],[Фамилия]]","v":{"$error":"#VALUE!"}},{"$f":"Таблица1[[#This Row],[Имя]]","v":{"$error":"#VALUE!"}},{"$f":"Таблица1[[#This Row],[Отчество]]","v":{"$error":"#VALUE!"}},{"$f":"Таблица1[[#This Row],[адрес]]","v":{"$error":"#VALUE!"}},{"$f":"Таблица1[[#This Row],[дата          заказа]]","v":{"$error":"#VALUE!"}},{"$f":"Таблица1[[#This Row],[тип           помещения]]","v":{"$error":"#VALUE!"}},null,null,null,null,null,null,null,null,null,{"$f":"IF('dop_uslug (2)'!$K79=\"стирка\",price_dop!$B$4,IF('dop_uslug (2)'!$K79=\"посуда\",price_dop!$B$5,price_dop!$C$4))","v":0},{"$f":"IF('dop_uslug (2)'!$L79=\"стирка\",price_dop!$B$4,IF('dop_uslug (2)'!$L79=\"посуда\",price_dop!$B$5,price_dop!$C$4))","v":0},{"$f":"Таблица24[[#This Row],[доп.услуга1]]+Таблица24[[#This Row],[доп.услуга2]]","v":0}]
[{"$f":"Таблица1[[#This Row],[№]]","v":{"$error":"#VALUE!"}},{"$f":"Таблица1[[#This Row],[Фамилия]]","v":{"$error":"#VALUE!"}},{"$f":"Таблица1[[#This Row],[Имя]]","v":{"$error":"#VALUE!"}},{"$f":"Таблица1[[#This Row],[Отчество]]","v":{"$error":"#VALUE!"}},{"$f":"Таблица1[[#This Row],[адрес]]","v":{"$error":"#VALUE!"}},{"$f":"Таблица1[[#This Row],[дата          заказа]]","v":{"$error":"#VALUE!"}},{"$f":"Таблица1[[#This Row],[тип           помещения]]","v":{"$error":"#VALUE!"}},null,null,null,null,null,null,null,null,null,{"$f":"IF('dop_uslug (2)'!$K80=\"стирка\",price_dop!$B$4,IF('dop_uslug (2)'!$K80=\"посуда\",price_dop!$B$5,price_dop!$C$4))","v":0},{"$f":"IF('dop_uslug (2)'!$L80=\"стирка\",price_dop!$B$4,IF('dop_uslug (2)'!$L80=\"посуда\",price_dop!$B$5,price_dop!$C$4))","v":0},{"$f":"Таблица24[[#This Row],[доп.услуга1]]+Таблица24[[#This Row],[доп.услуга2]]","v":0}]
[{"$f":"Таблица1[[#This Row],[№]]","v":{"$error":"#VALUE!"}},{"$f":"Таблица1[[#This Row],[Фамилия]]","v":{"$error":"#VALUE!"}},{"$f":"Таблица1[[#This Row],[Имя]]","v":{"$error":"#VALUE!"}},{"$f":"Таблица1[[#This Row],[Отчество]]","v":{"$error":"#VALUE!"}},{"$f":"Таблица1[[#This Row],[адрес]]","v":{"$error":"#VALUE!"}},{"$f":"Таблица1[[#This Row],[дата          заказа]]","v":{"$error":"#VALUE!"}},{"$f":"Таблица1[[#This Row],[тип           помещения]]","v":{"$error":"#VALUE!"}},null,null,null,null,null,null,null,null,null,{"$f":"IF('dop_uslug (2)'!$K81=\"стирка\",price_dop!$B$4,IF('dop_uslug (2)'!$K81=\"посуда\",price_dop!$B$5,price_dop!$C$4))","v":0},{"$f":"IF('dop_uslug (2)'!$L81=\"стирка\",price_dop!$B$4,IF('dop_uslug (2)'!$L81=\"посуда\",price_dop!$B$5,price_dop!$C$4))","v":0},{"$f":"Таблица24[[#This Row],[доп.услуга1]]+Таблица24[[#This Row],[доп.услуга2]]","v":0}]
[{"$f":"Таблица1[[#This Row],[№]]","v":{"$error":"#VALUE!"}},{"$f":"Таблица1[[#This Row],[Фамилия]]","v":{"$error":"#VALUE!"}},{"$f":"Таблица1[[#This Row],[Имя]]","v":{"$error":"#VALUE!"}},{"$f":"Таблица1[[#This Row],[Отчество]]","v":{"$error":"#VALUE!"}},{"$f":"Таблица1[[#This Row],[адрес]]","v":{"$error":"#VALUE!"}},{"$f":"Таблица1[[#This Row],[дата          заказа]]","v":{"$error":"#VALUE!"}},{"$f":"Таблица1[[#This Row],[тип           помещения]]","v":{"$error":"#VALUE!"}},null,null,null,null,null,null,null,null,null,{"$f":"IF('dop_uslug (2)'!$K82=\"стирка\",price_dop!$B$4,IF('dop_uslug (2)'!$K82=\"посуда\",price_dop!$B$5,price_dop!$C$4))","v":0},{"$f":"IF('dop_uslug (2)'!$L82=\"стирка\",price_dop!$B$4,IF('dop_uslug (2)'!$L82=\"посуда\",price_dop!$B$5,price_dop!$C$4))","v":0},{"$f":"Таблица24[[#This Row],[доп.услуга1]]+Таблица24[[#This Row],[доп.услуга2]]","v":0}]
[{"$f":"Таблица1[[#This Row],[№]]","v":{"$error":"#VALUE!"}},{"$f":"Таблица1[[#This Row],[Фамилия]]","v":{"$error":"#VALUE!"}},{"$f":"Таблица1[[#This Row],[Имя]]","v":{"$error":"#VALUE!"}},{"$f":"Таблица1[[#This Row],[Отчество]]","v":{"$error":"#VALUE!"}},{"$f":"Таблица1[[#This Row],[адрес]]","v":{"$error":"#VALUE!"}},{"$f":"Таблица1[[#This Row],[дата          заказа]]","v":{"$error":"#VALUE!"}},{"$f":"Таблица1[[#This Row],[тип           помещения]]","v":{"$error":"#VALUE!"}},null,null,null,null,null,null,null,null,null,{"$f":"IF('dop_uslug (2)'!$K83=\"стирка\",price_dop!$B$4,IF('dop_uslug (2)'!$K83=\"посуда\",price_dop!$B$5,price_dop!$C$4))","v":0},{"$f":"IF('dop_uslug (2)'!$L83=\"стирка\",price_dop!$B$4,IF('dop_uslug (2)'!$L83=\"посуда\",price_dop!$B$5,price_dop!$C$4))","v":0},{"$f":"Таблица24[[#This Row],[доп.услуга1]]+Таблица24[[#This Row],[доп.услуга2]]","v":0}]
[{"$f":"Таблица1[[#This Row],[№]]","v":{"$error":"#VALUE!"}},{"$f":"Таблица1[[#This Row],[Фамилия]]","v":{"$error":"#VALUE!"}},{"$f":"Таблица1[[#This Row],[Имя]]","v":{"$error":"#VALUE!"}},{"$f":"Таблица1[[#This Row],[Отчество]]","v":{"$error":"#VALUE!"}},{"$f":"Таблица1[[#This Row],[адрес]]","v":{"$error":"#VALUE!"}},{"$f":"Таблица1[[#This Row],[дата          заказа]]","v":{"$error":"#VALUE!"}},{"$f":"Таблица1[[#This Row],[тип           помещения]]","v":{"$error":"#VALUE!"}},null,null,null,null,null,null,null,null,null,{"$f":"IF('dop_uslug (2)'!$K84=\"стирка\",price_dop!$B$4,IF('dop_uslug (2)'!$K84=\"посуда\",price_dop!$B$5,price_dop!$C$4))","v":0},{"$f":"IF('dop_uslug (2)'!$L84=\"стирка\",price_dop!$B$4,IF('dop_uslug (2)'!$L84=\"посуда\",price_dop!$B$5,price_dop!$C$4))","v":0},{"$f":"Таблица24[[#This Row],[доп.услуга1]]+Таблица24[[#This Row],[доп.услуга2]]","v":0}]
[{"$f":"Таблица1[[#This Row],[№]]","v":{"$error":"#VALUE!"}},{"$f":"Таблица1[[#This Row],[Фамилия]]","v":{"$error":"#VALUE!"}},{"$f":"Таблица1[[#This Row],[Имя]]","v":{"$error":"#VALUE!"}},{"$f":"Таблица1[[#This Row],[Отчество]]","v":{"$error":"#VALUE!"}},{"$f":"Таблица1[[#This Row],[адрес]]","v":{"$error":"#VALUE!"}},{"$f":"Таблица1[[#This Row],[дата          заказа]]","v":{"$error":"#VALUE!"}},{"$f":"Таблица1[[#This Row],[тип           помещения]]","v":{"$error":"#VALUE!"}},null,null,null,null,null,null,null,null,null,{"$f":"IF('dop_uslug (2)'!$K85=\"стирка\",price_dop!$B$4,IF('dop_uslug (2)'!$K85=\"посуда\",price_dop!$B$5,price_dop!$C$4))","v":0},{"$f":"IF('dop_uslug (2)'!$L85=\"стирка\",price_dop!$B$4,IF('dop_uslug (2)'!$L85=\"посуда\",price_dop!$B$5,price_dop!$C$4))","v":0},{"$f":"Таблица24[[#This Row],[доп.услуга1]]+Таблица24[[#This Row],[доп.услуга2]]","v":0}]
[{"$f":"Таблица1[[#This Row],[№]]","v":{"$error":"#VALUE!"}},{"$f":"Таблица1[[#This Row],[Фамилия]]","v":{"$error":"#VALUE!"}},{"$f":"Таблица1[[#This Row],[Имя]]","v":{"$error":"#VALUE!"}},{"$f":"Таблица1[[#This Row],[Отчество]]","v":{"$error":"#VALUE!"}},{"$f":"Таблица1[[#This Row],[адрес]]","v":{"$error":"#VALUE!"}},{"$f":"Таблица1[[#This Row],[дата          заказа]]","v":{"$error":"#VALUE!"}},{"$f":"Таблица1[[#This Row],[тип           помещения]]","v":{"$error":"#VALUE!"}},null,null,null,null,null,null,null,null,null,{"$f":"IF('dop_uslug (2)'!$K86=\"стирка\",price_dop!$B$4,IF('dop_uslug (2)'!$K86=\"посуда\",price_dop!$B$5,price_dop!$C$4))","v":0},{"$f":"IF('dop_uslug (2)'!$L86=\"стирка\",price_dop!$B$4,IF('dop_uslug (2)'!$L86=\"посуда\",price_dop!$B$5,price_dop!$C$4))","v":0},{"$f":"Таблица24[[#This Row],[доп.услуга1]]+Таблица24[[#This Row],[доп.услуга2]]","v":0}]
[{"$f":"Таблица1[[#This Row],[№]]","v":{"$error":"#VALUE!"}},{"$f":"Таблица1[[#This Row],[Фамилия]]","v":{"$error":"#VALUE!"}},{"$f":"Таблица1[[#This Row],[Имя]]","v":{"$error":"#VALUE!"}},{"$f":"Таблица1[[#This Row],[Отчество]]","v":{"$error":"#VALUE!"}},{"$f":"Таблица1[[#This Row],[адрес]]","v":{"$error":"#VALUE!"}},{"$f":"Таблица1[[#This Row],[дата          заказа]]","v":{"$error":"#VALUE!"}},{"$f":"Таблица1[[#This Row],[тип           помещения]]","v":{"$error":"#VALUE!"}},null,null,null,null,null,null,null,null,null,{"$f":"IF('dop_uslug (2)'!$K87=\"стирка\",price_dop!$B$4,IF('dop_uslug (2)'!$K87=\"посуда\",price_dop!$B$5,price_dop!$C$4))","v":0},{"$f":"IF('dop_uslug (2)'!$L87=\"стирка\",price_dop!$B$4,IF('dop_uslug (2)'!$L87=\"посуда\",price_dop!$B$5,price_dop!$C$4))","v":0},{"$f":"Таблица24[[#This Row],[доп.услуга1]]+Таблица24[[#This Row],[доп.услуга2]]","v":0}]
[{"$f":"Таблица1[[#This Row],[№]]","v":{"$error":"#VALUE!"}},{"$f":"Таблица1[[#This Row],[Фамилия]]","v":{"$error":"#VALUE!"}},{"$f":"Таблица1[[#This Row],[Имя]]","v":{"$error":"#VALUE!"}},{"$f":"Таблица1[[#This Row],[Отчество]]","v":{"$error":"#VALUE!"}},{"$f":"Таблица1[[#This Row],[адрес]]","v":{"$error":"#VALUE!"}},{"$f":"Таблица1[[#This Row],[дата          заказа]]","v":{"$error":"#VALUE!"}},{"$f":"Таблица1[[#This Row],[тип           помещения]]","v":{"$error":"#VALUE!"}},null,null,null,null,null,null,null,null,null,{"$f":"IF('dop_uslug (2)'!$K88=\"стирка\",price_dop!$B$4,IF('dop_uslug (2)'!$K88=\"посуда\",price_dop!$B$5,price_dop!$C$4))","v":0},{"$f":"IF('dop_uslug (2)'!$L88=\"стирка\",price_dop!$B$4,IF('dop_uslug (2)'!$L88=\"посуда\",price_dop!$B$5,price_dop!$C$4))","v":0},{"$f":"Таблица24[[#This Row],[доп.услуга1]]+Таблица24[[#This Row],[доп.услуга2]]","v":0}]
[{"$f":"Таблица1[[#This Row],[№]]","v":{"$error":"#VALUE!"}},{"$f":"Таблица1[[#This Row],[Фамилия]]","v":{"$error":"#VALUE!"}},{"$f":"Таблица1[[#This Row],[Имя]]","v":{"$error":"#VALUE!"}},{"$f":"Таблица1[[#This Row],[Отчество]]","v":{"$error":"#VALUE!"}},{"$f":"Таблица1[[#This Row],[адрес]]","v":{"$error":"#VALUE!"}},{"$f":"Таблица1[[#This Row],[дата          заказа]]","v":{"$error":"#VALUE!"}},{"$f":"Таблица1[[#This Row],[тип           помещения]]","v":{"$error":"#VALUE!"}},null,null,null,null,null,null,null,null,null,{"$f":"IF('dop_uslug (2)'!$K89=\"стирка\",price_dop!$B$4,IF('dop_uslug (2)'!$K89=\"посуда\",price_dop!$B$5,price_dop!$C$4))","v":0},{"$f":"IF('dop_uslug (2)'!$L89=\"стирка\",price_dop!$B$4,IF('dop_uslug (2)'!$L89=\"посуда\",price_dop!$B$5,price_dop!$C$4))","v":0},{"$f":"Таблица24[[#This Row],[доп.услуга1]]+Таблица24[[#This Row],[доп.услуга2]]","v":0}]
[{"$f":"Таблица1[[#This Row],[№]]","v":{"$error":"#VALUE!"}},{"$f":"Таблица1[[#This Row],[Фамилия]]","v":{"$error":"#VALUE!"}},{"$f":"Таблица1[[#This Row],[Имя]]","v":{"$error":"#VALUE!"}},{"$f":"Таблица1[[#This Row],[Отчество]]","v":{"$error":"#VALUE!"}},{"$f":"Таблица1[[#This Row],[адрес]]","v":{"$error":"#VALUE!"}},{"$f":"Таблица1[[#This Row],[дата          заказа]]","v":{"$error":"#VALUE!"}},{"$f":"Таблица1[[#This Row],[тип           помещения]]","v":{"$error":"#VALUE!"}},null,null,null,null,null,null,null,null,null,{"$f":"IF('dop_uslug (2)'!$K90=\"стирка\",price_dop!$B$4,IF('dop_uslug (2)'!$K90=\"посуда\",price_dop!$B$5,price_dop!$C$4))","v":0},{"$f":"IF('dop_uslug (2)'!$L90=\"стирка\",price_dop!$B$4,IF('dop_uslug (2)'!$L90=\"посуда\",price_dop!$B$5,price_dop!$C$4))","v":0},{"$f":"Таблица24[[#This Row],[доп.услуга1]]+Таблица24[[#This Row],[доп.услуга2]]","v":0}]
[{"$f":"Таблица1[[#This Row],[№]]","v":{"$error":"#VALUE!"}},{"$f":"Таблица1[[#This Row],[Фамилия]]","v":{"$error":"#VALUE!"}},{"$f":"Таблица1[[#This Row],[Имя]]","v":{"$error":"#VALUE!"}},{"$f":"Таблица1[[#This Row],[Отчество]]","v":{"$error":"#VALUE!"}},{"$f":"Таблица1[[#This Row],[адрес]]","v":{"$error":"#VALUE!"}},{"$f":"Таблица1[[#This Row],[дата          заказа]]","v":{"$error":"#VALUE!"}},{"$f":"Таблица1[[#This Row],[тип           помещения]]","v":{"$error":"#VALUE!"}},null,null,null,null,null,null,null,null,null,{"$f":"IF('dop_uslug (2)'!$K91=\"стирка\",price_dop!$B$4,IF('dop_uslug (2)'!$K91=\"посуда\",price_dop!$B$5,price_dop!$C$4))","v":0},{"$f":"IF('dop_uslug (2)'!$L91=\"стирка\",price_dop!$B$4,IF('dop_uslug (2)'!$L91=\"посуда\",price_dop!$B$5,price_dop!$C$4))","v":0},{"$f":"Таблица24[[#This Row],[доп.услуга1]]+Таблица24[[#This Row],[доп.услуга2]]","v":0}]
[{"$f":"Таблица1[[#This Row],[№]]","v":{"$error":"#VALUE!"}},{"$f":"Таблица1[[#This Row],[Фамилия]]","v":{"$error":"#VALUE!"}},{"$f":"Таблица1[[#This Row],[Имя]]","v":{"$error":"#VALUE!"}},{"$f":"Таблица1[[#This Row],[Отчество]]","v":{"$error":"#VALUE!"}},{"$f":"Таблица1[[#This Row],[адрес]]","v":{"$error":"#VALUE!"}},{"$f":"Таблица1[[#This Row],[дата          заказа]]","v":{"$error":"#VALUE!"}},{"$f":"Таблица1[[#This Row],[тип           помещения]]","v":{"$error":"#VALUE!"}},null,null,null,null,null,null,null,null,null,{"$f":"IF('dop_uslug (2)'!$K92=\"стирка\",price_dop!$B$4,IF('dop_uslug (2)'!$K92=\"посуда\",price_dop!$B$5,price_dop!$C$4))","v":0},{"$f":"IF('dop_uslug (2)'!$L92=\"стирка\",price_dop!$B$4,IF('dop_uslug (2)'!$L92=\"посуда\",price_dop!$B$5,price_dop!$C$4))","v":0},{"$f":"Таблица24[[#This Row],[доп.услуга1]]+Таблица24[[#This Row],[доп.услуга2]]","v":0}]
[{"$f":"Таблица1[[#This Row],[№]]","v":{"$error":"#VALUE!"}},{"$f":"Таблица1[[#This Row],[Фамилия]]","v":{"$error":"#VALUE!"}},{"$f":"Таблица1[[#This Row],[Имя]]","v":{"$error":"#VALUE!"}},{"$f":"Таблица1[[#This Row],[Отчество]]","v":{"$error":"#VALUE!"}},{"$f":"Таблица1[[#This Row],[адрес]]","v":{"$error":"#VALUE!"}},{"$f":"Таблица1[[#This Row],[дата          заказа]]","v":{"$error":"#VALUE!"}},{"$f":"Таблица1[[#This Row],[тип           помещения]]","v":{"$error":"#VALUE!"}},null,null,null,null,null,null,null,null,null,{"$f":"IF('dop_uslug (2)'!$K93=\"стирка\",price_dop!$B$4,IF('dop_uslug (2)'!$K93=\"посуда\",price_dop!$B$5,price_dop!$C$4))","v":0},{"$f":"IF('dop_uslug (2)'!$L93=\"стирка\",price_dop!$B$4,IF('dop_uslug (2)'!$L93=\"посуда\",price_dop!$B$5,price_dop!$C$4))","v":0},{"$f":"Таблица24[[#This Row],[доп.услуга1]]+Таблица24[[#This Row],[доп.услуга2]]","v":0}]
[{"$f":"Таблица1[[#This Row],[№]]","v":{"$error":"#VALUE!"}},{"$f":"Таблица1[[#This Row],[Фамилия]]","v":{"$error":"#VALUE!"}},{"$f":"Таблица1[[#This Row],[Имя]]","v":{"$error":"#VALUE!"}},{"$f":"Таблица1[[#This Row],[Отчество]]","v":{"$error":"#VALUE!"}},{"$f":"Таблица1[[#This Row],[адрес]]","v":{"$error":"#VALUE!"}},{"$f":"Таблица1[[#This Row],[дата          заказа]]","v":{"$error":"#VALUE!"}},{"$f":"Таблица1[[#This Row],[тип           помещения]]","v":{"$error":"#VALUE!"}},null,null,null,null,null,null,null,null,null,{"$f":"IF('dop_uslug (2)'!$K94=\"стирка\",price_dop!$B$4,IF('dop_uslug (2)'!$K94=\"посуда\",price_dop!$B$5,price_dop!$C$4))","v":0},{"$f":"IF('dop_uslug (2)'!$L94=\"стирка\",price_dop!$B$4,IF('dop_uslug (2)'!$L94=\"посуда\",price_dop!$B$5,price_dop!$C$4))","v":0},{"$f":"Таблица24[[#This Row],[доп.услуга1]]+Таблица24[[#This Row],[доп.услуга2]]","v":0}]
[{"$f":"Таблица1[[#This Row],[№]]","v":{"$error":"#VALUE!"}},{"$f":"Таблица1[[#This Row],[Фамилия]]","v":{"$error":"#VALUE!"}},{"$f":"Таблица1[[#This Row],[Имя]]","v":{"$error":"#VALUE!"}},{"$f":"Таблица1[[#This Row],[Отчество]]","v":{"$error":"#VALUE!"}},{"$f":"Таблица1[[#This Row],[адрес]]","v":{"$error":"#VALUE!"}},{"$f":"Таблица1[[#This Row],[дата          заказа]]","v":{"$error":"#VALUE!"}},{"$f":"Таблица1[[#This Row],[тип           помещения]]","v":{"$error":"#VALUE!"}},null,null,null,null,null,null,null,null,null,{"$f":"IF('dop_uslug (2)'!$K95=\"стирка\",price_dop!$B$4,IF('dop_uslug (2)'!$K95=\"посуда\",price_dop!$B$5,price_dop!$C$4))","v":0},{"$f":"IF('dop_uslug (2)'!$L95=\"стирка\",price_dop!$B$4,IF('dop_uslug (2)'!$L95=\"посуда\",price_dop!$B$5,price_dop!$C$4))","v":0},{"$f":"Таблица24[[#This Row],[доп.услуга1]]+Таблица24[[#This Row],[доп.услуга2]]","v":0}]
[{"$f":"Таблица1[[#This Row],[№]]","v":{"$error":"#VALUE!"}},{"$f":"Таблица1[[#This Row],[Фамилия]]","v":{"$error":"#VALUE!"}},{"$f":"Таблица1[[#This Row],[Имя]]","v":{"$error":"#VALUE!"}},{"$f":"Таблица1[[#This Row],[Отчество]]","v":{"$error":"#VALUE!"}},{"$f":"Таблица1[[#This Row],[адрес]]","v":{"$error":"#VALUE!"}},{"$f":"Таблица1[[#This Row],[дата          заказа]]","v":{"$error":"#VALUE!"}},{"$f":"Таблица1[[#This Row],[тип           помещения]]","v":{"$error":"#VALUE!"}},null,null,null,null,null,null,null,null,null,{"$f":"IF('dop_uslug (2)'!$K96=\"стирка\",price_dop!$B$4,IF('dop_uslug (2)'!$K96=\"посуда\",price_dop!$B$5,price_dop!$C$4))","v":0},{"$f":"IF('dop_uslug (2)'!$L96=\"стирка\",price_dop!$B$4,IF('dop_uslug (2)'!$L96=\"посуда\",price_dop!$B$5,price_dop!$C$4))","v":0},{"$f":"Таблица24[[#This Row],[доп.услуга1]]+Таблица24[[#This Row],[доп.услуга2]]","v":0}]
[{"$f":"Таблица1[[#This Row],[№]]","v":{"$error":"#VALUE!"}},{"$f":"Таблица1[[#This Row],[Фамилия]]","v":{"$error":"#VALUE!"}},{"$f":"Таблица1[[#This Row],[Имя]]","v":{"$error":"#VALUE!"}},{"$f":"Таблица1[[#This Row],[Отчество]]","v":{"$error":"#VALUE!"}},{"$f":"Таблица1[[#This Row],[адрес]]","v":{"$error":"#VALUE!"}},{"$f":"Таблица1[[#This Row],[дата          заказа]]","v":{"$error":"#VALUE!"}},{"$f":"Таблица1[[#This Row],[тип           помещения]]","v":{"$error":"#VALUE!"}},null,null,null,null,null,null,null,null,null,{"$f":"IF('dop_uslug (2)'!$K97=\"стирка\",price_dop!$B$4,IF('dop_uslug (2)'!$K97=\"посуда\",price_dop!$B$5,price_dop!$C$4))","v":0},{"$f":"IF('dop_uslug (2)'!$L97=\"стирка\",price_dop!$B$4,IF('dop_uslug (2)'!$L97=\"посуда\",price_dop!$B$5,price_dop!$C$4))","v":0},{"$f":"Таблица24[[#This Row],[доп.услуга1]]+Таблица24[[#This Row],[доп.услуга2]]","v":0}]
[{"$f":"Таблица1[[#This Row],[№]]","v":{"$error":"#VALUE!"}},{"$f":"Таблица1[[#This Row],[Фамилия]]","v":{"$error":"#VALUE!"}},{"$f":"Таблица1[[#This Row],[Имя]]","v":{"$error":"#VALUE!"}},{"$f":"Таблица1[[#This Row],[Отчество]]","v":{"$error":"#VALUE!"}},{"$f":"Таблица1[[#This Row],[адрес]]","v":{"$error":"#VALUE!"}},{"$f":"Таблица1[[#This Row],[дата          заказа]]","v":{"$error":"#VALUE!"}},{"$f":"Таблица1[[#This Row],[тип           помещения]]","v":{"$error":"#VALUE!"}},null,null,null,null,null,null,null,null,null,{"$f":"IF('dop_uslug (2)'!$K98=\"стирка\",price_dop!$B$4,IF('dop_uslug (2)'!$K98=\"посуда\",price_dop!$B$5,price_dop!$C$4))","v":0},{"$f":"IF('dop_uslug (2)'!$L98=\"стирка\",price_dop!$B$4,IF('dop_uslug (2)'!$L98=\"посуда\",price_dop!$B$5,price_dop!$C$4))","v":0},{"$f":"Таблица24[[#This Row],[доп.услуга1]]+Таблица24[[#This Row],[доп.услуга2]]","v":0}]
[{"$f":"Таблица1[[#This Row],[№]]","v":{"$error":"#VALUE!"}},{"$f":"Таблица1[[#This Row],[Фамилия]]","v":{"$error":"#VALUE!"}},{"$f":"Таблица1[[#This Row],[Имя]]","v":{"$error":"#VALUE!"}},{"$f":"Таблица1[[#This Row],[Отчество]]","v":{"$error":"#VALUE!"}},{"$f":"Таблица1[[#This Row],[адрес]]","v":{"$error":"#VALUE!"}},{"$f":"Таблица1[[#This Row],[дата          заказа]]","v":{"$error":"#VALUE!"}},{"$f":"Таблица1[[#This Row],[тип           помещения]]","v":{"$error":"#VALUE!"}},null,null,null,null,null,null,null,null,null,{"$f":"IF('dop_uslug (2)'!$K99=\"стирка\",price_dop!$B$4,IF('dop_uslug (2)'!$K99=\"посуда\",price_dop!$B$5,price_dop!$C$4))","v":0},{"$f":"IF('dop_uslug (2)'!$L99=\"стирка\",price_dop!$B$4,IF('dop_uslug (2)'!$L99=\"посуда\",price_dop!$B$5,price_dop!$C$4))","v":0},{"$f":"Таблица24[[#This Row],[доп.услуга1]]+Таблица24[[#This Row],[доп.услуга2]]","v":0}]
[{"$f":"Таблица1[[#This Row],[№]]","v":{"$error":"#VALUE!"}},{"$f":"Таблица1[[#This Row],[Фамилия]]","v":{"$error":"#VALUE!"}},{"$f":"Таблица1[[#This Row],[Имя]]","v":{"$error":"#VALUE!"}},{"$f":"Таблица1[[#This Row],[Отчество]]","v":{"$error":"#VALUE!"}},{"$f":"Таблица1[[#This Row],[адрес]]","v":{"$error":"#VALUE!"}},{"$f":"Таблица1[[#This Row],[дата          заказа]]","v":{"$error":"#VALUE!"}},{"$f":"Таблица1[[#This Row],[тип           помещения]]","v":{"$error":"#VALUE!"}},null,null,null,null,null,null,null,null,null,{"$f":"IF('dop_uslug (2)'!$K100=\"стирка\",price_dop!$B$4,IF('dop_uslug (2)'!$K100=\"посуда\",price_dop!$B$5,price_dop!$C$4))","v":0},{"$f":"IF('dop_uslug (2)'!$L100=\"стирка\",price_dop!$B$4,IF('dop_uslug (2)'!$L100=\"посуда\",price_dop!$B$5,price_dop!$C$4))","v":0},{"$f":"Таблица24[[#This Row],[доп.услуга1]]+Таблица24[[#This Row],[доп.услуга2]]","v":0}]
[{"$f":"Таблица1[[#This Row],[№]]","v":{"$error":"#VALUE!"}},{"$f":"Таблица1[[#This Row],[Фамилия]]","v":{"$error":"#VALUE!"}},{"$f":"Таблица1[[#This Row],[Имя]]","v":{"$error":"#VALUE!"}},{"$f":"Таблица1[[#This Row],[Отчество]]","v":{"$error":"#VALUE!"}},{"$f":"Таблица1[[#This Row],[адрес]]","v":{"$error":"#VALUE!"}},{"$f":"Таблица1[[#This Row],[дата          заказа]]","v":{"$error":"#VALUE!"}},{"$f":"Таблица1[[#This Row],[тип           помещения]]","v":{"$error":"#VALUE!"}},null,null,null,null,null,null,null,null,null,{"$f":"IF('dop_uslug (2)'!$K101=\"стирка\",price_dop!$B$4,IF('dop_uslug (2)'!$K101=\"посуда\",price_dop!$B$5,price_dop!$C$4))","v":0},{"$f":"IF('dop_uslug (2)'!$L101=\"стирка\",price_dop!$B$4,IF('dop_uslug (2)'!$L101=\"посуда\",price_dop!$B$5,price_dop!$C$4))","v":0},{"$f":"Таблица24[[#This Row],[доп.услуга1]]+Таблица24[[#This Row],[доп.услуга2]]","v":0}]
[{"$f":"Таблица1[[#This Row],[№]]","v":{"$error":"#VALUE!"}},{"$f":"Таблица1[[#This Row],[Фамилия]]","v":{"$error":"#VALUE!"}},{"$f":"Таблица1[[#This Row],[Имя]]","v":{"$error":"#VALUE!"}},{"$f":"Таблица1[[#This Row],[Отчество]]","v":{"$error":"#VALUE!"}},{"$f":"Таблица1[[#This Row],[адрес]]","v":{"$error":"#VALUE!"}},{"$f":"Таблица1[[#This Row],[дата          заказа]]","v":{"$error":"#VALUE!"}},{"$f":"Таблица1[[#This Row],[тип           помещения]]","v":{"$error":"#VALUE!"}},null,null,null,null,null,null,null,null,null,{"$f":"IF('dop_uslug (2)'!$K102=\"стирка\",price_dop!$B$4,IF('dop_uslug (2)'!$K102=\"посуда\",price_dop!$B$5,price_dop!$C$4))","v":0},{"$f":"IF('dop_uslug (2)'!$L102=\"стирка\",price_dop!$B$4,IF('dop_uslug (2)'!$L102=\"посуда\",price_dop!$B$5,price_dop!$C$4))","v":0},{"$f":"Таблица24[[#This Row],[доп.услуга1]]+Таблица24[[#This Row],[доп.услуга2]]","v":0}]
[{"$f":"Таблица1[[#This Row],[№]]","v":{"$error":"#VALUE!"}},{"$f":"Таблица1[[#This Row],[Фамилия]]","v":{"$error":"#VALUE!"}},{"$f":"Таблица1[[#This Row],[Имя]]","v":{"$error":"#VALUE!"}},{"$f":"Таблица1[[#This Row],[Отчество]]","v":{"$error":"#VALUE!"}},{"$f":"Таблица1[[#This Row],[адрес]]","v":{"$error":"#VALUE!"}},{"$f":"Таблица1[[#This Row],[дата          заказа]]","v":{"$error":"#VALUE!"}},{"$f":"Таблица1[[#This Row],[тип           помещения]]","v":{"$error":"#VALUE!"}},null,null,null,null,null,null,null,null,null,{"$f":"IF('dop_uslug (2)'!$K103=\"стирка\",price_dop!$B$4,IF('dop_uslug (2)'!$K103=\"посуда\",price_dop!$B$5,price_dop!$C$4))","v":0},{"$f":"IF('dop_uslug (2)'!$L103=\"стирка\",price_dop!$B$4,IF('dop_uslug (2)'!$L103=\"посуда\",price_dop!$B$5,price_dop!$C$4))","v":0},{"$f":"Таблица24[[#This Row],[доп.услуга1]]+Таблица24[[#This Row],[доп.услуга2]]","v":0}]
[{"$f":"Таблица1[[#This Row],[№]]","v":{"$error":"#VALUE!"}},{"$f":"Таблица1[[#This Row],[Фамилия]]","v":{"$error":"#VALUE!"}},{"$f":"Таблица1[[#This Row],[Имя]]","v":{"$error":"#VALUE!"}},{"$f":"Таблица1[[#This Row],[Отчество]]","v":{"$error":"#VALUE!"}},{"$f":"Таблица1[[#This Row],[адрес]]","v":{"$error":"#VALUE!"}},{"$f":"Таблица1[[#This Row],[дата          заказа]]","v":{"$error":"#VALUE!"}},{"$f":"Таблица1[[#This Row],[тип           помещения]]","v":{"$error":"#VALUE!"}},null,null,null,null,null,null,null,null,null,{"$f":"IF('dop_uslug (2)'!$K104=\"стирка\",price_dop!$B$4,IF('dop_uslug (2)'!$K104=\"посуда\",price_dop!$B$5,price_dop!$C$4))","v":0},{"$f":"IF('dop_uslug (2)'!$L104=\"стирка\",price_dop!$B$4,IF('dop_uslug (2)'!$L104=\"посуда\",price_dop!$B$5,price_dop!$C$4))","v":0},{"$f":"Таблица24[[#This Row],[доп.услуга1]]+Таблица24[[#This Row],[доп.услуга2]]","v":0}]
[{"$f":"Таблица1[[#This Row],[№]]","v":{"$error":"#VALUE!"}},{"$f":"Таблица1[[#This Row],[Фамилия]]","v":{"$error":"#VALUE!"}},{"$f":"Таблица1[[#This Row],[Имя]]","v":{"$error":"#VALUE!"}},{"$f":"Таблица1[[#This Row],[Отчество]]","v":{"$error":"#VALUE!"}},{"$f":"Таблица1[[#This Row],[адрес]]","v":{"$error":"#VALUE!"}},{"$f":"Таблица1[[#This Row],[дата          заказа]]","v":{"$error":"#VALUE!"}},{"$f":"Таблица1[[#This Row],[тип           помещения]]","v":{"$error":"#VALUE!"}},null,null,null,null,null,null,null,null,null,{"$f":"IF('dop_uslug (2)'!$K105=\"стирка\",price_dop!$B$4,IF('dop_uslug (2)'!$K105=\"посуда\",price_dop!$B$5,price_dop!$C$4))","v":0},{"$f":"IF('dop_uslug (2)'!$L105=\"стирка\",price_dop!$B$4,IF('dop_uslug (2)'!$L105=\"посуда\",price_dop!$B$5,price_dop!$C$4))","v":0},{"$f":"Таблица24[[#This Row],[доп.услуга1]]+Таблица24[[#This Row],[доп.услуга2]]","v":0}]
[{"$f":"Таблица1[[#This Row],[№]]","v":{"$error":"#VALUE!"}},{"$f":"Таблица1[[#This Row],[Фамилия]]","v":{"$error":"#VALUE!"}},{"$f":"Таблица1[[#This Row],[Имя]]","v":{"$error":"#VALUE!"}},{"$f":"Таблица1[[#This Row],[Отчество]]","v":{"$error":"#VALUE!"}},{"$f":"Таблица1[[#This Row],[адрес]]","v":{"$error":"#VALUE!"}},{"$f":"Таблица1[[#This Row],[дата          заказа]]","v":{"$error":"#VALUE!"}},{"$f":"Таблица1[[#This Row],[тип           помещения]]","v":{"$error":"#VALUE!"}},null,null,null,null,null,null,null,null,null,{"$f":"IF('dop_uslug (2)'!$K106=\"стирка\",price_dop!$B$4,IF('dop_uslug (2)'!$K106=\"посуда\",price_dop!$B$5,price_dop!$C$4))","v":0},{"$f":"IF('dop_uslug (2)'!$L106=\"стирка\",price_dop!$B$4,IF('dop_uslug (2)'!$L106=\"посуда\",price_dop!$B$5,price_dop!$C$4))","v":0},{"$f":"Таблица24[[#This Row],[доп.услуга1]]+Таблица24[[#This Row],[доп.услуга2]]","v":0}]
[{"$f":"Таблица1[[#This Row],[№]]","v":{"$error":"#VALUE!"}},{"$f":"Таблица1[[#This Row],[Фамилия]]","v":{"$error":"#VALUE!"}},{"$f":"Таблица1[[#This Row],[Имя]]","v":{"$error":"#VALUE!"}},{"$f":"Таблица1[[#This Row],[Отчество]]","v":{"$error":"#VALUE!"}},{"$f":"Таблица1[[#This Row],[адрес]]","v":{"$error":"#VALUE!"}},{"$f":"Таблица1[[#This Row],[дата          заказа]]","v":{"$error":"#VALUE!"}},{"$f":"Таблица1[[#This Row],[тип           помещения]]","v":{"$error":"#VALUE!"}},null,null,null,null,null,null,null,null,null,{"$f":"IF('dop_uslug (2)'!$K107=\"стирка\",price_dop!$B$4,IF('dop_uslug (2)'!$K107=\"посуда\",price_dop!$B$5,price_dop!$C$4))","v":0},{"$f":"IF('dop_uslug (2)'!$L107=\"стирка\",price_dop!$B$4,IF('dop_uslug (2)'!$L107=\"посуда\",price_dop!$B$5,price_dop!$C$4))","v":0},{"$f":"Таблица24[[#This Row],[доп.услуга1]]+Таблица24[[#This Row],[доп.услуга2]]","v":0}]
[{"$f":"Таблица1[[#This Row],[№]]","v":{"$error":"#VALUE!"}},{"$f":"Таблица1[[#This Row],[Фамилия]]","v":{"$error":"#VALUE!"}},{"$f":"Таблица1[[#This Row],[Имя]]","v":{"$error":"#VALUE!"}},{"$f":"Таблица1[[#This Row],[Отчество]]","v":{"$error":"#VALUE!"}},{"$f":"Таблица1[[#This Row],[адрес]]","v":{"$error":"#VALUE!"}},{"$f":"Таблица1[[#This Row],[дата          заказа]]","v":{"$error":"#VALUE!"}},{"$f":"Таблица1[[#This Row],[тип           помещения]]","v":{"$error":"#VALUE!"}},null,null,null,null,null,null,null,null,null,{"$f":"IF('dop_uslug (2)'!$K108=\"стирка\",price_dop!$B$4,IF('dop_uslug (2)'!$K108=\"посуда\",price_dop!$B$5,price_dop!$C$4))","v":0},{"$f":"IF('dop_uslug (2)'!$L108=\"стирка\",price_dop!$B$4,IF('dop_uslug (2)'!$L108=\"посуда\",price_dop!$B$5,price_dop!$C$4))","v":0},{"$f":"Таблица24[[#This Row],[доп.услуга1]]+Таблица24[[#This Row],[доп.услуга2]]","v":0}]
[{"$f":"Таблица1[[#This Row],[№]]","v":{"$error":"#VALUE!"}},{"$f":"Таблица1[[#This Row],[Фамилия]]","v":{"$error":"#VALUE!"}},{"$f":"Таблица1[[#This Row],[Имя]]","v":{"$error":"#VALUE!"}},{"$f":"Таблица1[[#This Row],[Отчество]]","v":{"$error":"#VALUE!"}},{"$f":"Таблица1[[#This Row],[адрес]]","v":{"$error":"#VALUE!"}},{"$f":"Таблица1[[#This Row],[дата          заказа]]","v":{"$error":"#VALUE!"}},{"$f":"Таблица1[[#This Row],[тип           помещения]]","v":{"$error":"#VALUE!"}},null,null,null,null,null,null,null,null,null,{"$f":"IF('dop_uslug (2)'!$K109=\"стирка\",price_dop!$B$4,IF('dop_uslug (2)'!$K109=\"посуда\",price_dop!$B$5,price_dop!$C$4))","v":0},{"$f":"IF('dop_uslug (2)'!$L109=\"стирка\",price_dop!$B$4,IF('dop_uslug (2)'!$L109=\"посуда\",price_dop!$B$5,price_dop!$C$4))","v":0},{"$f":"Таблица24[[#This Row],[доп.услуга1]]+Таблица24[[#This Row],[доп.услуга2]]","v":0}]
[{"$f":"Таблица1[[#This Row],[№]]","v":{"$error":"#VALUE!"}},{"$f":"Таблица1[[#This Row],[Фамилия]]","v":{"$error":"#VALUE!"}},{"$f":"Таблица1[[#This Row],[Имя]]","v":{"$error":"#VALUE!"}},{"$f":"Таблица1[[#This Row],[Отчество]]","v":{"$error":"#VALUE!"}},{"$f":"Таблица1[[#This Row],[адрес]]","v":{"$error":"#VALUE!"}},{"$f":"Таблица1[[#This Row],[дата          заказа]]","v":{"$error":"#VALUE!"}},{"$f":"Таблица1[[#This Row],[тип           помещения]]","v":{"$error":"#VALUE!"}},null,null,null,null,null,null,null,null,null,{"$f":"IF('dop_uslug (2)'!$K110=\"стирка\",price_dop!$B$4,IF('dop_uslug (2)'!$K110=\"посуда\",price_dop!$B$5,price_dop!$C$4))","v":0},{"$f":"IF('dop_uslug (2)'!$L110=\"стирка\",price_dop!$B$4,IF('dop_uslug (2)'!$L110=\"посуда\",price_dop!$B$5,price_dop!$C$4))","v":0},{"$f":"Таблица24[[#This Row],[доп.услуга1]]+Таблица24[[#This Row],[доп.услуга2]]","v":0}]